{"text_format":"2","workbook":"xlsx","n_sheets":6,"sheets":["История 6","История 7","История 8","История 9","История 10","История 11"],"not_rendered":{"charts":0,"images":0,"macros":0,"external_links":1,"defined_names":6,"comments":0,"pivot_tables":0},"unopened":[],"bounds":{"document_bytes":16777216,"sheet_cells":100000,"run_cost":"one","rows_first":2000,"rows_last":500,"rows_between":2000,"halvings":0,"cell_chars":16384,"cell_head_chars":4096},"cells_cut":0,"cells_raw":0,"read":"whole","date_system":"1900"}

{"sheet":"История 6","index":0,"n_rows":157,"n_cols":11,"rows_kept":157,"cut":false,"hidden":false,"merged":[[0,2,0,9]]}
[]
[]
[null,null,100]
["№ п/п","Муниципалитет","Шифр (код) выданный ребенку","класс обучается","класс выступает","ОО, в которой обучается (полное название по УСТАВУ)","Количество набранных баллов","Статус","Победитель/призер МЭ 2020-2021 (статус)*","ФИО учителя (наставника)","ФИО учителя (наставника)**"]
[1,"Московский","И-6-4","6Б","6Б","Муниципальное автономное  общеобразовательное учреждение \"Школа № 139\"",71,"победитель ",null," Изосова Ирина Васильевна"]
[2,"Московский","ИС-06-01",6,6,"Муниципальное автономное  общеобразовательное учреждение \"Школа №172\"",68,"победитель",null,"Дакудина Я.Д."]
[3,"Московский","И-501639",6,6,"Муниципальное бюджетное общеобразовательное учреждение \"Школа № 69\"",67,"призер",null,"Миртова Ирина Владимировна"]
[4,"Московский","ИС-06-02",6,6,"Муниципальное автономное  общеобразовательное учреждение \"Школа №172\"",65,"призер",null,"Дакудина Я.Д."]
[5,"Московский","и-6-11",6,6,"Муниципальное автономное общеобразовательное учреждение \"Школа № 74 с углубленным изучением отдельных предметов\"",64,"призер",null,"Шибалова Юлия Александровна"]
[6,"Московский","ИС-06-12",6,6,"Муниципальное автономное общеобразовательное учреждение \"Школа №172\"",61,"призер",null,"Дакудина Я.Д."]
[7,"Московский","И-6-1",6,6,"Муниципальное автономное  общеобразовательное учреждение \"Школа №178\"",60,"призер",null,"Чеснокова Ольга Андреевна"]
[8,"Московский","ИС-06-06",6,6,"Муниципальное автономное общеобразовательное учреждение \"Школа №172\"",59,"призер",null,"Дакудина Я.Д."]
[9,"Московский","И-6-5","6Б","6Б","Муниципальное автономное  общеобразовательное учреждение \"Школа № 139\"",58,"призер",null," Изосова Ирина Васильевна"]
[10,"Московский","И-6-1","6А","6А","Муниципальное автономное  общеобразовательное учреждение \"Школа № 139\"",57,"призер",null," Изосова Ирина Васильевна"]
[11,"Московский","И-6-1",6,6,"Муниципальное автономное общеобразовательное учреждение  \"Школа № 118 с углубленным изучением отдельных предметов\"",57,"призер",null,"Новоселова М.А."]
[12,"Московский","ИС-06-13",6,6,"Муниципальное автономное  общеобразовательное учреждение \"Школа №172\"",56,"призер",null,"Карпова О.В."]
[13,"Московский","ИС-06-08",6,6,"Муниципальное автономное  общеобразовательное учреждение \"Школа №172\"",56,"призер",null,"Дакудина Я.Д."]
[14,"Московский","И-6-5",6,6,"Муниципальное автономное общеобразовательное учреждение  \"Школа № 118 с углубленным изучением отдельных предметов\"",56,"призер",null,"Новоселова М.А."]
[15,"Московский","И-6-4",6,6,"Муниципальное автономное общеобразовательное учреждение  \"Школа № 118 с углубленным изучением отдельных предметов\"",56,"призер",null,"Новоселова М.А."]
[16,"Московский","И-29-09-29",6,6,"Муниципальное бюджетное общеобразовательное учреждение \"Лицей № 87 имени Л.И.Новиковой\"",55,"призер",null,"Кочетова Софья Ивановна"]
[17,"Московский","И 6-3",6,6,"Муниципальное автономное общеобразовательное учреждение \"Школа № 149\"",55,"призер",null,"Селегененко Любовь Валерьевна"]
[18,"Московский","ИС-06-09",6,6,"Муниципальное автономное общеобразовательное учреждение \"Гимназия № 67\"",54,"призер",null,"Раков Антон Сергеевич"]
[19,"Московский","И-6-7",6,6,"Муниципальное автономное общеобразовательное учреждение  \"Школа № 118 с углубленным изучением отдельных предметов\"",54,"призер",null,"Новоселова М.А."]
[20,"Московский","и-6-13",6,6,"Муниципальное автономное общеобразовательное учреждение \"Школа № 74 с углубленным изучением отдельных предметов\"",54,"призер",null,"Шибалова Юлия Александровна"]
[21,"Московский","ИС-06-101",6,6,"Муниципальное бюджетное общеобразовательное учреждение \"Школа № 21\"",53,"призер",null,"Мельникова Екатерина Андреевна"]
[22,"Московский","и-6-10",6,6,"Муниципальное автономное общеобразовательное учреждение \"Школа № 74 с углубленным изучением отдельных предметов\"",53,"призер",null,"Шибалова Юлия Александровна"]
[23,"Московский","И 6-1",6,6,"Муниципальное автономное  общеобразовательное учреждение \"Школа № 149\"",52,"призер",null,"Селегененко Любовь Валерьевна"]
[24,"Московский","И-6-10",6,6,"Муниципальное бюджетное общеобразовательное учреждение \"Школа № 115\"",52,"призер",null,"Симахина Евгения Александровна"]
[25,"Московский","И-503639",6,6,"Муниципальное бюджетное общеобразовательное учреждение \"Школа № 69\"",51,"призер",null,"Миртова Ирина Владимировна"]
[26,"Московский","И-29-09-26",6,6,"Муниципальное бюджетное общеобразовательное учреждение \"Лицей № 87 имени Л.И.Новиковой\"",51,"призер",null,"Кочетова Софья Ивановна"]
[27,"Московский","ИС-06-41",6,6,"Муниципальное бюджетное общеобразовательное учреждение \"Школа № 21\"",51,"призер",null,"Мельникова Екатерина Андреевна"]
[28,"Московский","И 6-2",6,6,"Муниципальное автономное  общеобразовательное учреждение \"Школа № 149\"",50,"призер",null,"Селегененко Любовь Валерьевна"]
[29,"Московский","И-29-09-08",6,6,"Муниципальное бюджетное общеобразовательное учреждение \"Лицей № 87 имени Л.И.Новиковой\"",50,"призер",null,"Кочетова Софья Ивановна"]
[30,"Московский","И-29-09-16",6,6,"Муниципальное бюджетное общеобразовательное учреждение \"Лицей № 87 имени Л.И.Новиковой\"",49,"участник",null,"Кочетова Софья Ивановна"]
[31,"Московский","И-29-09-10",6,6,"Муниципальное бюджетное общеобразовательное учреждение \"Лицей № 87 имени Л.И.Новиковой\"",48,"участник",null,"Кочетова Софья Ивановна"]
[32,"Московский","И-29-09-13",6,6,"Муниципальное бюджетное общеобразовательное учреждение \"Лицей № 87 имени Л.И.Новиковой\"",48,"участник",null,"Кочетова Софья Ивановна"]
[33,"Московский","и-6-1",6,6,"Муниципальное автономное общеобразовательное учреждение \"Школа № 74 с углубленным изучением отдельных предметов\"",48,"участник",null,"Шибалова Юлия Александровна"]
[34,"Московский","И-29-09-12",6,6,"Муниципальное бюджетное общеобразовательное учреждение \"Лицей № 87 имени Л.И.Новиковой\"",47,"участник",null,"Кочетова Софья Ивановна"]
[35,"Московский","И-6-26",6,6,"Муниципальное автономное общеобразовательное учреждение  \"Школа № 118 с углубленным изучением отдельных предметов\"",47,"участник",null,"Сосенкова С.А."]
[36,"Московский","И-6-2","6В","6В","Муниципальное автономное  общеобразовательное учреждение \"Школа № 139\"",46,"участник",null," Изосова Ирина Васильевна"]
[37,"Московский","И-6-9",6,6,"Муниципальное бюджетное общеобразовательное учреждение \"Школа № 115\"",45,"участник",null,"Симахина Евгения Александровна"]
[38,"Московский","ИС-06-71",6,6,"Муниципальное бюджетное общеобразовательное учреждение \"Школа № 21\"",45,"участник",null,"Мельникова Екатерина Андреевна"]
[39,"Московский","И-6-25",6,6,"Муниципальное автономное общеобразовательное учреждение  \"Школа № 118 с углубленным изучением отдельных предметов\"",44,"участник",null,"Сосенкова С.А."]
[40,"Московский","И-040639",6,6,"Муниципальное бюджетное общеобразовательное учреждение \"Школа № 69\"",44,"участник",null,"Миртова Ирина Владимировна"]
[41,"Московский","И-6-6",6,6,"Муниципальное автономное общеобразовательное учреждение  \"Школа № 118 с углубленным изучением отдельных предметов\"",43,"участник",null,"Новоселова М.А."]
[42,"Московский","И-6-12",6,6,"Муниципальное бюджетное общеобразовательное учреждение \"Школа № 115\"",43,"участник",null,"Симахина Евгения Александровна"]
[43,"Московский","И-29-09-19",6,6,"Муниципальное бюджетное общеобразовательное учреждение \"Лицей № 87 имени Л.И.Новиковой\"",43,"участник",null,"Кочетова Софья Ивановна"]
[44,"Московский","И-060639",6,6,"Муниципальное бюджетное общеобразовательное учреждение \"Школа № 69\"",42,"участник",null,"Миртова Ирина Владимировна"]
[45,"Московский","И-6-24",6,6,"Муниципальное автономное общеобразовательное учреждение  \"Школа № 118 с углубленным изучением отдельных предметов\"",41,"участник",null,"Сосенкова С.А."]
[46,"Московский","И-6-23",6,6,"Муниципальное автономное общеобразовательное учреждение  \"Школа № 118 с углубленным изучением отдельных предметов\"",40,"участник",null,"Сосенкова С.А."]
[47,"Московский","И-6-17",6,6,"Муниципальное автономное общеобразовательное учреждение  \"Школа № 118 с углубленным изучением отдельных предметов\"",40,"участник",null,"Новоселова М.А."]
[48,"Московский","И-0436",6,6,"Муниципальное бюджетное общеобразовательное учреждение \"Школа № 69\"",40,"участник",null,"Муравьева Ольга Николаевна"]
[49,"Московский","И-6-3",6,6,"Муниципальное автономное  общеобразовательное учреждение \"Школа № 70 с углубленным изучением отдельных предметов\"",39,"участник",null,"Сутягин Николай Александрович"]
[50,"Московский","И-0536",6,6,"Муниципальное бюджетное общеобразовательное учреждение \"Школа № 69\"",38,"участник",null,"Муравьева Ольга Николаевна"]
[51,"Московский","И-6-16",6,6,"Муниципальное автономное общеобразовательное учреждение  \"Школа № 118 с углубленным изучением отдельных предметов\"",38,"участник",null,"Новоселова М.А."]
[52,"Московский","ИС-06-98",6,6,"Муниципальное бюджетное общеобразовательное учреждение \"Школа № 21\"",38,"участник",null,"Мельникова Екатерина Андреевна"]
[53,"Московский","И-6-2",6,6,"Муниципальное автономное общеобразовательное учреждение  \"Школа № 118 с углубленным изучением отдельных предметов\"",37,"участник",null,"Новоселова М.А."]
[54,"Московский","И-29-09-23",6,6,"Муниципальное бюджетное общеобразовательное учреждение \"Лицей № 87 имени Л.И.Новиковой\"",37,"участник",null,"Кочетова Софья Ивановна"]
[55,"Московский","И-29-09-31",6,6,"Муниципальное бюджетное общеобразовательное учреждение \"Лицей № 87 имени Л.И.Новиковой\"",36,"участник",null,"Кочетова Софья Ивановна"]
[56,"Московский","И-6-11",6,6,"Муниципальное бюджетное общеобразовательное учреждение \"Школа № 115\"",36,"участник",null,"Симахина Евгения Александровна"]
[57,"Московский","И-29-09-03",6,6,"Муниципальное бюджетное общеобразовательное учреждение \"Лицей № 87 имени Л.И.Новиковой\"",35,"участник",null,"Кочетова Софья Ивановна"]
[58,"Московский","И-6-22",6,6,"Муниципальное автономное общеобразовательное учреждение  \"Школа № 118 с углубленным изучением отдельных предметов\"",34,"участник",null,"Сосенкова С.А."]
[59,"Московский","ИС-06-07",6,6,"Муниципальное автономное общеобразовательное учреждение \"Гимназия № 67\"",34,"участник",null,"Раков Антон Сергеевич"]
[60,"Московский","И-29-09-04",6,6,"Муниципальное бюджетное общеобразовательное учреждение \"Лицей № 87 имени Л.И.Новиковой\"",34,"участник",null,"Кочетова Софья Ивановна"]
[61,"Московский","И-6-34",6,6,"Муниципальное автономное  общеобразовательное учреждение \"Школа №178\"",34,"участник",null,"Чеснокова Ольга Андреевна"]
[62,"Московский","И-29-09-01",6,6,"Муниципальное бюджетное общеобразовательное учреждение \"Лицей № 87 имени Л.И.Новиковой\"",33,"участник",null,"Кочетова Софья Ивановна"]
[63,"Московский","И-6-15",6,6,"Муниципальное бюджетное общеобразовательное учреждение \"Школа № 115\"",33,"участник",null,"Юдина Ксения Вячеславовна"]
[64,"Московский","И-29-09-06",6,6,"Муниципальное бюджетное общеобразовательное учреждение \"Лицей № 87 имени Л.И.Новиковой\"",32,"участник",null,"Кочетова Софья Ивановна"]
[65,"Московский","И-070639",6,6,"Муниципальное бюджетное общеобразовательное учреждение \"Школа № 69\"",32,"участник",null,"Миртова Ирина Владимировна"]
[66,"Московский","И-6-3","6А","6А","Муниципальное автономное  общеобразовательное учреждение \"Школа № 139\"",32,"участник",null," Изосова Ирина Васильевна"]
[67,"Московский","И-6-9",6,6,"Муниципальное автономное общеобразовательное учреждение  \"Школа № 118 с углубленным изучением отдельных предметов\"",32,"участник",null,"Новоселова М.А."]
[68,"Московский","И-6-7","6В","6В","Муниципальное автономное  общеобразовательное учреждение \"Школа № 139\"",31,"участник",null," Изосова Ирина Васильевна"]
[69,"Московский","ИС-06-23",6,6,"Муниципальное бюджетное общеобразовательное учреждение \"Школа № 21\"",31,"участник",null,"Мельникова Екатерина Андреевна"]
[70,"Московский","и-6-17",6,6,"Муниципальное автономное общеобразовательное учреждение \"Школа № 74 с углубленным изучением отдельных предметов\"",31,"участник",null,"Шибалова Юлия Александровна"]
[71,"Московский","И-29-09-18",6,6,"Муниципальное бюджетное общеобразовательное учреждение \"Лицей № 87 имени Л.И.Новиковой\"",30,"участник",null,"Кочетова Софья Ивановна"]
[72,"Московский","И-6-8",6,6,"Муниципальное автономное общеобразовательное учреждение  \"Школа № 118 с углубленным изучением отдельных предметов\"",30,"участник",null,"Новоселова М.А."]
[73,"Московский","ИС-06-03",6,6,"Муниципальное автономное общеобразовательное учреждение \"Гимназия № 67\"",30,"участник",null,"Раков Антон Сергеевич"]
[74,"Московский","И-6-8","6В","6В","Муниципальное автономное  общеобразовательное учреждение \"Школа № 139\"",30,"участник",null," Изосова Ирина Васильевна"]
[75,"Московский","И-6-9","6В","6В","Муниципальное автономное  общеобразовательное учреждение \"Школа № 139\"",30,"участник",null," Изосова Ирина Васильевна"]
[76,"Московский","И-6-15",6,6,"Муниципальное автономное общеобразовательное учреждение  \"Школа № 118 с углубленным изучением отдельных предметов\"",29,"участник",null,"Новоселова М.А."]
[77,"Московский","И-6-35",6,6,"Муниципальное автономное  общеобразовательное учреждение \"Школа №178\"",29,"участник",null,"Чеснокова Ольга Андреевна"]
[78,"Московский","И-6-5",6,6,"Муниципальное автономное  общеобразовательное учреждение \"Школа № 70 с углубленным изучением отдельных предметов\"",29,"участник",null,"Сутягин Николай Александрович"]
[79,"Московский","ИС-06-39",6,6,"Муниципальное бюджетное общеобразовательное учреждение \"Школа № 21\"",29,"участник",null,"Мельникова Екатерина Андреевна"]
[80,"Московский","И-29-09-24",6,6,"Муниципальное бюджетное общеобразовательное учреждение \"Лицей № 87 имени Л.И.Новиковой\"",28,"участник",null,"Кочетова Софья Ивановна"]
[81,"Московский","И-0636",6,6,"Муниципальное бюджетное общеобразовательное учреждение \"Школа № 69\"",28,"участник",null,"Муравьева Ольга Николаевна"]
[82,"Московский","ИС-06-40",6,6,"Муниципальное бюджетное общеобразовательное учреждение \"Школа № 21\"",28,"участник",null,"Мельникова Екатерина Андреевна"]
[83,"Московский","И-6-3",6,6,"Муниципальное бюджетное общеобразовательное учреждение \"Школа № 115\"",28,"участник",null,"Симахина Евгения Александровна"]
[84,"Московский","И-29-09-11",6,6,"Муниципальное бюджетное общеобразовательное учреждение \"Лицей № 87 имени Л.И.Новиковой\"",28,"участник",null,"Кочетова Софья Ивановна"]
[85,"Московский","И-6-10",6,6,"Муниципальное автономное общеобразовательное учреждение  \"Школа № 118 с углубленным изучением отдельных предметов\"",27,"участник",null,"Новоселова М.А."]
[86,"Московский","ИС-06-03",6,6,"Муниципальное автономное  общеобразовательное учреждение \"Школа №172\"",27,"участник",null,"Дакудина Я.Д."]
[87,"Московский","ИС-06-11",6,6,"Муниципальное автономное общеобразовательное учреждение \"Гимназия № 67\"",27,"участник",null,"Раков Антон Сергеевич"]
[88,"Московский","И-6-1",6,6,"Муниципальное бюджетное общеобразовательное учреждение \"Школа №64\"",27,"участник",null,"Громов Н.Е."]
[89,"Московский","ИС-06-02",6,6,"Муниципальное автономное общеобразовательное учреждение \"Гимназия № 67\"",27,"участник",null,"Раков Антон Сергеевич"]
[90,"Московский","И 6-4",6,6,"Муниципальное автономное общеобразовательное учреждение \"Школа № 149\"",27,"участник",null,"Селегененко Любовь Валерьевна"]
[91,"Московский","И-6-21",6,6,"Муниципальное автономное общеобразовательное учреждение  \"Школа № 118 с углубленным изучением отдельных предметов\"",26,"участник",null,"Сосенкова С.А."]
[92,"Московский","И-6-20",6,6,"Муниципальное автономное общеобразовательное учреждение  \"Школа № 118 с углубленным изучением отдельных предметов\"",26,"участник",null,"Сосенкова С.А."]
[93,"Московский","и-6-15",6,6,"Муниципальное автономное общеобразовательное учреждение \"Школа № 74 с углубленным изучением отдельных предметов\"",26,"участник",null,"Шибалова Юлия Александровна"]
[94,"Московский","И-6-2",6,6,"Муниципальное автономное  общеобразовательное учреждение \"Школа № 70 с углубленным изучением отдельных предметов\"",26,"участник",null,"Сутягин Николай Александрович"]
[95,"Московский","ИС-06-08",6,6,"Муниципальное автономное общеобразовательное учреждение \"Гимназия № 67\"",26,"участник",null,"Раков Антон Сергеевич"]
[96,"Московский","И-29-09-07",6,6,"Муниципальное бюджетное общеобразовательное учреждение \"Лицей № 87 имени Л.И.Новиковой\"",25,"участник",null,"Кочетова Софья Ивановна"]
[97,"Московский","И-050639",6,6,"Муниципальное бюджетное общеобразовательное учреждение \"Школа № 69\"",25,"участник",null,"Миртова Ирина Владимировна"]
[98,"Московский","И 6-5",6,6,"Муниципальное автономное  общеобразовательное учреждение \"Школа № 149\"",24,"участник",null,"Селегененко Любовь Валерьевна"]
[99,"Московский","И-6-18",6,6,"Муниципальное автономное общеобразовательное учреждение  \"Школа № 118 с углубленным изучением отдельных предметов\"",24,"участник",null,"Новоселова М.А."]
[100,"Московский","ИС-06-04",6,6,"Муниципальное автономное общеобразовательное учреждение \"Гимназия № 67\"",24,"участник",null,"Раков Антон Сергеевич"]
[101,"Московский","и-6-14",6,6,"Муниципальное автономное общеобразовательное учреждение \"Школа № 74 с углубленным изучением отдельных предметов\"",24,"участник",null,"Шибалова Юлия Александровна"]
[102,"Московский","ИС-06-05",6,6,"Муниципальное автономное общеобразовательное учреждение \"Гимназия № 67\"",24,"участник",null,"Раков Антон Сергеевич"]
[103,"Московский","И-502639",6,6,"Муниципальное бюджетное общеобразовательное учреждение \"Школа № 69\"",24,"участник",null,"Миртова Ирина Владимировна"]
[104,"Московский","И-0736",6,6,"Муниципальное бюджетное общеобразовательное учреждение \"Школа № 69\"",25,"участник",null,"Муравьева Ольга Николаевна"]
[105,"Московский","И-6-17",6,6,"Муниципальное бюджетное общеобразовательное учреждение \"Школа № 115\"",24,"участник",null,"Симахина Евгения Александровна"]
[106,"Московский","И-6-19",6,6,"Муниципальное автономное общеобразовательное учреждение  \"Школа № 118 с углубленным изучением отдельных предметов\"",22,"участник",null,"Новоселова М.А."]
[107,"Московский","И-29-09-12",6,6,"Муниципальное бюджетное общеобразовательное учреждение \"Лицей № 87 имени Л.И.Новиковой\"",22,"участник",null,"Кочетова Софья Ивановна"]
[108,"Московский","И6-2",6,6,"Муниципальное  бюджетное  общеобразовательное учреждение \"Школа № 146\"",22,"участник","нет","Писаревская Наталья Николаевна"]
[109,"Московский","И-6-3",6,6,"Муниципальное автономное общеобразовательное учреждение  \"Школа № 118 с углубленным изучением отдельных предметов\"",22,"участник",null,"Новоселова М.А."]
[110,"Московский","И-6-1",6,6,"Муниципальное автономное  общеобразовательное учреждение \"Школа № 70 с углубленным изучением отдельных предметов\"",22,"участник",null,"Сутягин Николай Александрович"]
[111,"Московский","И6-3",6,6,"Муниципальное  бюджетное  общеобразовательное учреждение \"Школа № 146\"",22,"участник","нет","Писаревская Наталья Николаевна"]
[112,"Московский","И6А-1",6,6,"Муниципальное бюджетное общеобразовательное учреждение \"Школа № 66\"",22,"участник",null,"Прошунина Галина Петровна"]
[113,"Московский","И-6-3",6,6,"Муниципальное бюджетное общеобразовательное учреждение \"Школа №64\"",22,"участник",null,"Громов Н.Е."]
[114,"Московский","И-6-13",6,6,"Муниципальное автономное общеобразовательное учреждение  \"Школа № 118 с углубленным изучением отдельных предметов\"",22,"участник",null,"Новоселова М.А."]
[115,"Московский","И-090539",6,6,"Муниципальное бюджетное общеобразовательное учреждение \"Школа № 69\"",22,"участник",null,"Миртова Ирина Владимировна"]
[116,"Московский","И-6-30",6,6,"Муниципальное автономное  общеобразовательное учреждение \"Школа №178\"",22,"участник",null,"Чеснокова Ольга Андреевна"]
[117,"Московский","И6-1",6,6,"Муниципальное  бюджетное  общеобразовательное учреждение \"Школа № 146\"",21,"участник","нет","Писаревская Наталья Николаевна"]
[118,"Московский","И-6-2",6,6,"Муниципальное бюджетное общеобразовательное учреждение \"Школа №64\"",21,"участник",null,"Громов Н.Е."]
[119,"Московский","ИШ-1",6,6,"Муниципальное бюджетное общеобразовательное учреждение \"Школа  №93\"",21,"участник",null,"Дикушева Татьяна Михайловна"]
[120,"Московский","И-6-7",6,6,"Муниципальное бюджетное общеобразовательное учреждение \"Школа № 115\"",21,"участник",null,"Юдина Ксения Вячеславовна"]
[121,"Московский","И-29-09-02",6,6,"Муниципальное бюджетное общеобразовательное учреждение \"Лицей № 87 имени Л.И.Новиковой\"",21,"участник",null,"Кочетова Софья Ивановна"]
[122,"Московский","ИС-06-04",6,6,"Муниципальное автономное общеобразовательное учреждение \"Школа №172\"",21,"участник",null,"Дакудина Я.Д."]
[123,"Московский","ИС-06-75",6,6,"Муниципальное бюджетное общеобразовательное учреждение \"Школа № 21\"",21,"участник",null,"Мельникова Екатерина Андреевна"]
[124,"Московский","И-6-4",6,6,"Муниципальное автономное  общеобразовательное учреждение \"Школа № 70 с углубленным изучением отдельных предметов\"",20,"участник",null,"Сутягин Николай Александрович"]
[125,"Московский","И-6-31",6,6,"Муниципальное автономное  общеобразовательное учреждение \"Школа №178\"",20,"участник",null,"Чеснокова Ольга Андреевна"]
[126,"Московский","И-29-09-21",6,6,"Муниципальное бюджетное общеобразовательное учреждение \"Лицей № 87 имени Л.И.Новиковой\"",20,"участник",null,"Кочетова Софья Ивановна"]
[127,"Московский","И-6-12",6,6,"Муниципальное автономное общеобразовательное учреждение  \"Школа № 118 с углубленным изучением отдельных предметов\"",20,"участник",null,"Новоселова М.А."]
[128,"Московский","ИС-06-09",6,6,"Муниципальное автономное общеобразовательное учреждение \"Школа №172\"",20,"участник",null,"Дакудина Я.Д."]
[129,"Московский","И-6-5",6,6,"Муниципальное бюджетное общеобразовательное учреждение \"Школа № 115\"",20,"участник",null,"Симахина Евгения Александровна"]
[130,"Московский","ИС-06-05",6,6,"Муниципальное автономное общеобразовательное учреждение \"Школа №172\"",19,"участник",null,"Дакудина Я.Д."]
[131,"Московский","И-080639",6,6,"Муниципальное бюджетное общеобразовательное учреждение \"Школа № 69\"",19,"участник",null,"Миртова Ирина Владимировна"]
[132,"Московский","И-6-13",6,6,"Муниципальное бюджетное общеобразовательное учреждение \"Школа № 115\"",18,"участник",null,"Юдина Ксения Вячеславовна"]
[133,"Московский","ИС-06-14",6,6,"Муниципальное автономное  общеобразовательное учреждение \"Школа №172\"",18,"участник",null,"Дакудина Я.Д."]
[134,"Московский","И 6-6",6,6,"Муниципальное автономное  общеобразовательное учреждение \"Школа № 149\"",17,"участник",null,"Селегененко Любовь Валерьевна"]
[135,"Московский","ИС-06-10",6,6,"Муниципальное автономное общеобразовательное учреждение \"Гимназия № 67\"",16,"участник",null,"Раков Антон Сергеевич"]
[136,"Московский","И-29-09-15",6,6,"Муниципальное бюджетное общеобразовательное учреждение \"Лицей № 87 имени Л.И.Новиковой\"",16,"участник",null,"Кочетова Софья Ивановна"]
[137,"Московский","И-6-16",6,6,"Муниципальное бюджетное общеобразовательное учреждение \"Школа № 115\"",15,"участник",null,"Юдина Ксения Вячеславовна"]
[138,"Московский","ИС-06-11",6,6,"Муниципальное автономное общеобразовательное учреждение \"Школа №172\"",15,"участник",null,"Дакудина Я.Д."]
[139,"Московский","И-6-1",6,6,"Муниципальное бюджетное общеобразовательное учреждение \"Школа №73\"",14,"участник",null,"Кузнецова Ольга Николаевна"]
[140,"Московский","И-6-2",6,6,"Муниципальное бюджетное общеобразовательное учреждение \"Школа №73\"",14,"участник",null,"Кузнецова Ольга Николаевна"]
[141,"Московский","И-6-6","6Б","6Б","Муниципальное автономное  общеобразовательное учреждение \"Школа № 139\"",14,"участник",null," Изосова Ирина Васильевна"]
[142,"Московский","И-6-14",6,6,"Муниципальное бюджетное общеобразовательное учреждение \"Школа № 115\"",14,"участник",null,"Юдина Ксения Вячеславовна"]
[143,"Московский","И-6-14",6,6,"Муниципальное автономное общеобразовательное учреждение  \"Школа № 118 с углубленным изучением отдельных предметов\"",14,"участник",null,"Новоселова М.А."]
[144,"Московский","И-29-09-28",6,6,"Муниципальное бюджетное общеобразовательное учреждение \"Лицей № 87 имени Л.И.Новиковой\"",12,"участник",null,"Кочетова Софья Ивановна"]
[145,"Московский","И-6-2",6,6,"Муниципальное бюджетное общеобразовательное учреждение \"Школа № 115\"",12,"участник",null,"Симахина Евгения Александровна"]
[146,"Московский","ИС-06-06",6,6,"Муниципальное автономное общеобразовательное учреждение \"Гимназия № 67\"",12,"участник",null,"Раков Антон Сергеевич"]
[147,"Московский","ИС-06-01",6,6,"Муниципальное автономное общеобразовательное учреждение \"Гимназия № 67\"",11,"участник",null,"Раков Антон Сергеевич"]
[148,"Московский","И-6-4",6,6,"Муниципальное бюджетное общеобразовательное учреждение \"Школа № 115\"",11,"участник",null,"Симахина Евгения Александровна"]
[149,"Московский","И-6-4",6,6,"Муниципальное бюджетное общеобразовательное учреждение \"Школа №64\"",11,"участник",null,"Громов Н.Е."]
[150,"Московский","ИС-06-07",6,6,"Муниципальное автономное  общеобразовательное учреждение \"Школа №172\"",10,"участник",null,"Дакудина Я.Д."]
[151,"Московский","И-6-11",6,6,"Муниципальное автономное общеобразовательное учреждение  \"Школа № 118 с углубленным изучением отдельных предметов\"",10,"участник",null,"Новоселова М.А."]
[152,"Московский","И-6-5",6,6,"Муниципальное бюджетное общеобразовательное учреждение \"Школа №64\"",10,"участник",null,"Громов Н.Е."]
[153,"Московский","И-0836",6,6,"Муниципальное бюджетное общеобразовательное учреждение \"Школа № 69\"",4,"участник",null,"Муравьева Ольга Николаевна"]

{"sheet":"История 7","index":1,"n_rows":110,"n_cols":10,"rows_kept":110,"cut":false,"hidden":false,"merged":[[0,2,0,9]]}
[]
[]
[null,null,100]
[]
["№ п/п","Муниципалитет","Шифр (код) выданный ребенку","класс обучается","класс выступает","ОО, в которой обучается (полное название по УСТАВУ)","Количество набранных баллов","Статус","Победитель/призер МЭ 2021-2022 (статус)*","ФИО учителя (наставника)"]
[1,"Московский","и-7-23",7,7,"Муниципальное автономное общеобразовательное учреждение \"Школа № 74 с углубленным изучением отдельных предметов\"",87,"победитель ",null,"Шибалова Юлия Александровна"]
[2,"Московский","и-7-19",7,7,"Муниципальное автономное общеобразовательное учреждение \"Школа № 74 с углубленным изучением отдельных предметов\"",85,"победитель ",null,"Шибалова Юлия Александровна"]
[3,"Московский","Ис-07-09",7,7,"Муниципальное автономное  общеобразовательное учреждение \"Школа №172\"",74,"призер",null,"Гаммель А.В."]
[4,"Московский","и-7-20",7,7,"Муниципальное автономное общеобразовательное учреждение \"Школа № 74 с углубленным изучением отдельных предметов\"",73,"призер",null,"Шибалова Юлия Александровна"]
[5,"Московский","Ис-07-08",7,7,"Муниципальное автономное  общеобразовательное учреждение \"Школа №172\"",73,"призер",null,"Гаммель А.В."]
[6,"Московский","и-7-18",7,7,"Муниципальное автономное общеобразовательное учреждение \"Школа № 74 с углубленным изучением отдельных предметов\"",71,"призер",null,"Шибалова Юлия Александровна"]
[7,"Московский","И-29-09-32",7,7,"Муниципальное бюджетное общеобразовательное учреждение \"Лицей № 87 имени Л.И.Новиковой\"",71,"призер",null,"Кочетова Софья Ивановна"]
[8,"Московский","Ис-07-10",7,7,"Муниципальное автономное  общеобразовательное учреждение \"Школа №172\"",67,"призер",null,"Гаммель А.В."]
[9,"Московский","И-7-23",7,7,"Муниципальное автономное  общеобразовательное учреждение \"Школа № 178\"",64,"призер",null,"Дубынина Ирина Николаевна"]
[10,"Московский","И-29-09-20",7,7,"Муниципальное бюджетное общеобразовательное учреждение \"Лицей № 87 имени Л.И.Новиковой\"",64,"призер",null,"Кочетова Софья Ивановна"]
[11,"Московский","И-7-3",7,7,"Муниципальное  бюджетное общеобразовательное учреждение \"Школа № 115\"",59,"призер",null,"Юдина Ксения Вячеславовна"]
[12,"Московский","ИС-07-03",7,7,"Муниципальное автономное общеобразовательное учреждение \"Гимназия № 67\"",59,"призер",null,"Егоров Вадим Валерьевич"]
[13,"Московский","И-7-5",7,7,"Муниципальное автономное  общеобразовательное учреждение \"Школа № 149\"",56,"призер",null,"Богатова Валентина Николаевна"]
[14,"Московский","И-7-14",7,7,"Муниципальное автономное  общеобразовательное учреждение \"Школа № 178\"",55,"призер",null,"Богатова Валентина Николаевна"]
[15,"Московский","И7А-2",7,7,"Муниципальное бюджетное общеобразовательное учреждение \"Школа № 66\"",54,"призер",null,"Богатова Валентина Николаевна"]
[16,"Московский","ИС-6",7,7,"Муниципальное бюджетное общеобразовательное учреждение \"Школа № 93\"",54,"призер",null,"Богатова Валентина Николаевна"]
[17,"Московский","ИС-07-40",7,7,"Муниципальное  бюджетное общеобразовательное учреждение \"Школа № 21\"",54,"призер",null,"Мельникова Екатерина Андреевна"]
[18,"Московский","Н-29-09-59",7,7,"Муниципальное бюджетное общеобразовательное учреждение \"Лицей № 87 имени Л.И.Новиковой\"",51,"призер",null,"Мамаев Владимир Владимирович"]
[19,"Московский","И7А-9",7,7,"Муниципальное бюджетное общеобразовательное учреждение \"Школа № 66\"",51,"призер",null,"Богатова Валентина Николаевна"]
[20,"Московский","И-7-3",7,7,"Муниципальное автономное  общеобразовательное учреждение \"Школа № 149\"",48,"участник",null,"Богатова Валентина Николаевна"]
[21,"Московский","Ис-07-05",7,7,"Муниципальное автономное  общеобразовательное учреждение \"Школа №172\"",48,"участник",null,"Гаммель А.В."]
[22,"Московский","И7-2",7,7,"Муниципальное  бюджетное  общеобразовательное учреждение \"Школа № 146\"",48,"участник",null,"Писаревская Наталья Николаевна"]
[23,"Московский","И7-1",7,7,"Муниципальное  бюджетное  общеобразовательное учреждение \"Школа № 146\"",47,"участник",null,"Писаревская Наталья Николаевна"]
[24,"Московский","И-7-4",7,7,"Муниципальное автономное общеобразовательное учреждение \"Школа № 149\"",46,"участник",null,"Богатова Валентина Николаевна"]
[25,"Московский","И-7-1",7,7,"Муниципальное автономное  общеобразовательное учреждение \"Школа № 149\"",46,"участник",null,"Богатова Валентина Николаевна"]
[26,"Московский","И-7-6",7,7,"Муниципальное  бюджетное общеобразовательное учреждение \"Школа № 115\"",46,"участник",null,"Жукова Евгения Борисовна"]
[27,"Московский","Ис-07-04",7,7,"Муниципальное автономное  общеобразовательное учреждение \"Школа №172\"",46,"участник",null,"Гаммель А.В."]
[28,"Московский","И-7-7",7,7,"Муниципальное  бюджетное общеобразовательное учреждение \"Школа № 115\"",46,"участник",null,"Жукова Евгения Борисовна"]
[29,"Московский","И-7-17",7,7,"Муниципальное автономное  общеобразовательное учреждение \"Школа № 178\"",45,"участник",null,"Чеснокова Ольга Андреевна"]
[30,"Московский","И7-3",7,7,"Муниципальное  бюджетное  общеобразовательное учреждение \"Школа № 146\"",45,"участник",null,"Писаревская Наталья Николаевна"]
[31,"Московский","И-29-09-62",7,7,"Муниципальное бюджетное общеобразовательное учреждение \"Лицей № 87 имени Л.И.Новиковой\"",45,"участник",null,"Кочетова Софья Ивановна"]
[32,"Московский","И-7-1","7А","7А","Муниципальное автономное  общеобразовательное учреждение \"Школа № 139\"",44,"участник",null,"Данилова Людмила Николаевна"]
[33,"Московский","И-7-4","7а",7,"Муниципальное бюджетное общеобразовательное учреждение \"Школа №73\"",43,"участник",null,"Кузнецова Ольга Николаевна"]
[34,"Московский","И-7-4",7,7,"Муниципальное бюджетное общеобразовательное учреждение \"Школа №64\"",43,"участник",null,"Меркулова Наталья Александровна"]
[35,"Московский","И-7-3",7,7,"Муниципальное автономное  общеобразовательное учреждение \"Школа № 70 с углубленным изучением отдельных предметов\"",42,"участник",null,"Сутягин Николай Александрович"]
[36,"Московский","И-7-1","7б",7,"Муниципальное бюджетное общеобразовательное учреждение \"Школа №73\"",42,"участник",null,"Скворцова Анна Ивановна"]
[37,"Московский","и-7-9",7,7,"Муниципальное автономное общеобразовательное учреждение  \"Школа № 118 с углубленным изучением отдельных предметов\"",42,"участник",null,"Тавокина Л.В."]
[38,"Московский","И-7-41",7,7,"Муниципальное автономное  общеобразовательное учреждение \"Школа № 178\"",39,"участник",null,"Дубынина Ирина Николаевна"]
[39,"Московский","И-7-2",7,7,"Муниципальное автономное  общеобразовательное учреждение \"Школа № 149\"",39,"участник",null,"Богатова Валентина Николаевна"]
[40,"Московский","ИС-07-01",7,7,"Муниципальное автономное общеобразовательное учреждение \"Гимназия № 67\"",39,"участник",null,"Егоров Вадим Валерьевич"]
[41,"Московский","ИС-07-04",7,7,"Муниципальное автономное общеобразовательное учреждение \"Гимназия № 67\"",39,"участник",null,"Егоров Вадим Валерьевич"]
[42,"Московский","ИС-07-51",7,7,"Муниципальное  бюджетное общеобразовательное учреждение \"Школа № 21\"",39,"участник",null,"Мельникова Екатерина Андреевна"]
[43,"Московский","И7Б-4",7,7,"Муниципальное бюджетное общеобразовательное учреждение \"Школа № 66\"",37,"участник",null,"Малов Сергей Вячеславович"]
[44,"Московский","И-7-21",7,7,"Муниципальное автономное  общеобразовательное учреждение \"Школа № 178\"",37,"участник",null,"Чеснокова Ольга Андреевна"]
[45,"Московский","и-7-8",7,7,"Муниципальное автономное общеобразовательное учреждение  \"Школа № 118 с углубленным изучением отдельных предметов\"",36,"участник",null,"Тавокина Л.В."]
[46,"Московский","и-7-21",7,7,"Муниципальное автономное общеобразовательное учреждение \"Школа № 74 с углубленным изучением отдельных предметов\"",36,"участник",null,"Шибалова Юлия Александровна"]
[47,"Московский","и-7-6",7,7,"Муниципальное автономное общеобразовательное учреждение  \"Школа № 118 с углубленным изучением отдельных предметов\"",35,"участник",null,"Тавокина Л.В."]
[48,"Московский","И-7-1",7,7,"Муниципальное бюджетное общеобразовательное учреждение \"Школа №64\"",35,"участник",null,"Меркулова Наталья Александровна"]
[49,"Московский","И-1036",7,7,"Муниципальное бюджетное общеобразовательное учреждение \"Школа № 69\"",35,"участник",null,"Муравьева Ольга Николаевна"]
[50,"Московский","И-7-2",7,7,"Муниципальное автономное  общеобразовательное учреждение \"Школа № 70 с углубленным изучением отдельных предметов\"",35,"участник",null,"Сутягин Николай Александрович"]
[51,"Московский","И-7-3","7А","7А","Муниципальное автономное  общеобразовательное учреждение \"Школа № 139\"",34,"участник",null,"Данилова Людмила Николаевна"]
[52,"Московский","и-7-5",7,7,"Муниципальное автономное общеобразовательное учреждение  \"Школа № 118 с углубленным изучением отдельных предметов\"",34,"участник",null,"Тавокина Л.В."]
[53,"Московский","И-7-4","7А","7А","Муниципальное автономное  общеобразовательное учреждение \"Школа № 139\"",33,"участник",null,"Данилова Людмила Николаевна"]
[54,"Московский","И-1136",7,7,"Муниципальное бюджетное общеобразовательное учреждение \"Школа № 69\"",31,"участник",null,"Муравьева Ольга Николаевна"]
[55,"Московский","И-7-40",7,7,"Муниципальное автономное  общеобразовательное учреждение \"Школа № 178\"",31,"участник",null,"Дубынина Ирина Николаевна"]
[56,"Московский","ИС-07-59",7,7,"Муниципальное  бюджетное общеобразовательное учреждение \"Школа № 21\"",29,"участник",null,"Мельникова Екатерина Андреевна"]
[57,"Московский","И7А-8",7,7,"Муниципальное бюджетное общеобразовательное учреждение \"Школа № 66\"",31,"участник",null,"Малов Сергей Вячеславович"]
[58,"Московский","И7А-5",7,7,"Муниципальное бюджетное общеобразовательное учреждение \"Школа № 66\"",29,"участник",null,"Малов Сергей Вячеславович"]
[59,"Московский","И-7-2",7,7,"Муниципальное бюджетное общеобразовательное учреждение \"Школа №64\"",29,"участник",null,"Меркулова Наталья Александровна"]
[60,"Московский","И-7-3",7,7,"Муниципальное бюджетное общеобразовательное учреждение \"Школа №64\"",29,"участник",null,"Меркулова Наталья Александровна"]
[61,"Московский","Ис-07-02",7,7,"Муниципальное автономное  общеобразовательное учреждение \"Школа №172\"",29,"участник",null,"Гаммель А.В."]
[62,"Московский","И-7-39",7,7,"Муниципальное автономное  общеобразовательное учреждение \"Школа № 178\"",28,"участник",null,"Чеснокова Ольга Андреевна"]
[63,"Московский","И-7-2",7,7,"Муниципальное  бюджетное общеобразовательное учреждение \"Школа № 115\"",28,"участник",null,"Юдина Ксения Вячеславовна"]
[64,"Московский","И-29-09-30",7,7,"Муниципальное бюджетное общеобразовательное учреждение \"Лицей № 87 имени Л.И.Новиковой\"",27,"участник",null,"Кочетова Софья Ивановна"]
[65,"Московский","И-7-1",7,7,"Муниципальное автономное  общеобразовательное учреждение \"Школа № 70 с углубленным изучением отдельных предметов\"",27,"участник",null,"Сутягин Николай Александрович"]
[66,"Московский","И7Б-6",7,7,"Муниципальное бюджетное общеобразовательное учреждение \"Школа № 66\"",27,"участник",null,"Малов Сергей Вячеславович"]
[67,"Московский","И-7-5","7А","7А","Муниципальное автономное  общеобразовательное учреждение \"Школа № 139\"",26,"участник",null,"Данилова Людмила Николаевна"]
[68,"Московский","Ис-07-06",7,7,"Муниципальное автономное  общеобразовательное учреждение \"Школа №172\"",26,"участник",null,"Гаммель А.В."]
[69,"Московский","И-29-09-27",7,7,"Муниципальное бюджетное общеобразовательное учреждение \"Лицей № 87 имени Л.И.Новиковой\"",25,"участник",null,"Кочетова Софья Ивановна"]
[70,"Московский","И-7-5","7в",7,"Муниципальное бюджетное общеобразовательное учреждение \"Школа №73\"",25,"участник",null,"Скворцова Анна Ивановна"]
[71,"Московский","И-7-15",7,7,"Муниципальное автономное  общеобразовательное учреждение \"Школа № 178\"",24,"участник",null,"Чеснокова Ольга Андреевна"]
[72,"Московский","ИС-07-02",7,7,"Муниципальное автономное общеобразовательное учреждение \"Гимназия № 67\"",24,"участник",null,"Егоров Вадим Валерьевич"]
[73,"Московский","И7А-3",7,7,"Муниципальное бюджетное общеобразовательное учреждение \"Школа № 66\"",23,"участник",null,"Малов Сергей Вячеславович"]
[74,"Московский","Н-29-09-09",7,7,"Муниципальное бюджетное общеобразовательное учреждение \"Лицей № 87 имени Л.И.Новиковой\"",23,"участник",null,"Кочетова Софья Ивановна"]
[75,"Московский","Ис-07-01",7,7,"Муниципальное автономное  общеобразовательное учреждение \"Школа №172\"",22,"участник",null,"Гаммель А.В."]
[76,"Московский","и-7-4",7,7,"Муниципальное автономное общеобразовательное учреждение  \"Школа № 118 с углубленным изучением отдельных предметов\"",23,"участник",null,"Тавокина Л.В."]
[77,"Московский","и-7-26",7,7,"Муниципальное автономное общеобразовательное учреждение \"Школа № 74 с углубленным изучением отдельных предметов\"",22,"участник",null,"Шибалова Юлия Александровна"]
[78,"Московский","И-7-2","7б",7,"Муниципальное бюджетное общеобразовательное учреждение \"Школа №73\"",21,"участник",null,"Скворцова Анна Ивановна"]
[79,"Московский","Ис-07-07",7,7,"Муниципальное автономное  общеобразовательное учреждение \"Школа №172\"",20,"участник",null,"Гаммель А.В."]
[80,"Московский","ИС-3",7,7,"Муниципальное бюджетное общеобразовательное учреждение \"Школа № 93\"",20,"участник",null,"Рослова Лариса Вячеславовна"]
[81,"Московский","И-7-3","7а",7,"Муниципальное бюджетное общеобразовательное учреждение \"Школа №73\"",20,"участник",null,"Кузнецова Ольга Николаевна"]
[82,"Московский","И-7-1",7,7,"Муниципальное  бюджетное общеобразовательное учреждение \"Школа № 115\"",19,"участник",null,"Юдина Ксения Вячеславовна"]
[83,"Московский","и-7-7",7,7,"Муниципальное автономное общеобразовательное учреждение  \"Школа № 118 с углубленным изучением отдельных предметов\"",19,"участник",null,"Тавокина Л.В."]
[84,"Московский","И-7-4",7,7,"Муниципальное  бюджетное общеобразовательное учреждение \"Школа № 115\"",19,"участник",null,"Жукова Евгения Борисовна"]
[85,"Московский","ИС-2",7,7,"Муниципальное бюджетное общеобразовательное учреждение \"Школа № 93\"",19,"участник",null,"Рослова Лариса Вячеславовна"]
[86,"Московский","И-7-6","7в",7,"Муниципальное бюджетное общеобразовательное учреждение \"Школа №73\"",18,"участник",null,"Скворцова Анна Ивановна"]
[87,"Московский","Ис-07-03",7,7,"Муниципальное автономное  общеобразовательное учреждение \"Школа №172\"",18,"участник",null,"Гаммель А.В."]
[88,"Московский","ИС-4",7,7,"Муниципальное бюджетное общеобразовательное учреждение \"Школа № 93\"",18,"участник",null,"Рослова Лариса Вячеславовна"]
[89,"Московский","И-29-09-60",7,7,"Муниципальное бюджетное общеобразовательное учреждение \"Лицей № 87 имени Л.И.Новиковой\"",17,"участник",null,"Мамаев Владимир Владимирович"]
[90,"Московский","И-7-7","7б",7,"Муниципальное бюджетное общеобразовательное учреждение \"Школа №73\"",17,"участник",null,"Скворцова Анна Ивановна"]
[91,"Московский","И-29-09-17",7,7,"Муниципальное бюджетное общеобразовательное учреждение \"Лицей № 87 имени Л.И.Новиковой\"",17,"участник",null,"Кочетова Софья Ивановна"]
[92,"Московский","Н-29-09-61",7,7,"Муниципальное бюджетное общеобразовательное учреждение \"Лицей № 87 имени Л.И.Новиковой\"",16,"участник",null,"Мамаев Владимир Владимирович"]
[93,"Московский","И-7-9",7,7,"Муниципальное  бюджетное общеобразовательное учреждение \"Школа № 115\"",15,"участник",null,"Юдина Ксения Вячеславовна"]
[94,"Московский","И7В-1",7,7,"Муниципальное бюджетное общеобразовательное учреждение \"Школа № 66\"",13,"участник",null,"Малов Сергей Вячеславович"]
[95,"Московский","Н-29-09-14",7,7,"Муниципальное бюджетное общеобразовательное учреждение \"Лицей № 87 имени Л.И.Новиковой\"",13,"участник",null,"Кочетова Софья Ивановна"]
[96,"Московский","И-7-4",7,7,"Муниципальное автономное  общеобразовательное учреждение \"Школа № 70 с углубленным изучением отдельных предметов\"",12,"участник",null,"Сутягин Николай Александрович"]
[97,"Московский","ИС-5",7,7,"Муниципальное бюджетное общеобразовательное учреждение \"Школа № 93\"",12,"участник",null,"Рослова Лариса Вячеславовна"]
[98,"Московский","и-7-25",7,7,"Муниципальное автономное общеобразовательное учреждение \"Школа № 74 с углубленным изучением отдельных предметов\"",11,"участник",null,"Шибалова Юлия Александровна"]
[99,"Московский","И-7-8",7,7,"Муниципальное  бюджетное общеобразовательное учреждение \"Школа № 115\"",11,"участник",null,"Жукова Евгения Борисовна"]
[100,"Московский","И7В-7",7,7,"Муниципальное бюджетное общеобразовательное учреждение \"Школа № 66\"",11,"участник",null,"Малов Сергей Вячеславович"]
[101,"Московский","И-29-09-33",7,7,"Муниципальное бюджетное общеобразовательное учреждение \"Лицей № 87 имени Л.И.Новиковой\"",10,"участник",null,"Кочетова Софья Ивановна"]
[102,"Московский",1,7,7,"Государственное казенное общеобразовательное учреждение \"Школа-интернат №2\"",10,"участник",null,"Ромашова Ольга Валерьевна"]
[103,"Московский","Н-29-09-05",7,7,"Муниципальное бюджетное общеобразовательное учреждение \"Лицей № 87 имени Л.И.Новиковой\"",10,"участник",null,"Кочетова Софья Ивановна"]
[104,"Московский","И-1236",7,7,"Муниципальное бюджетное общеобразовательное учреждение \"Школа № 69\"",9,"участник",null,"Муравьева Ольга Николаевна"]
[105,"Московский","И-7-5",7,7,"Муниципальное  бюджетное общеобразовательное учреждение \"Школа № 115\"",6,"участник",null,"Жукова Евгения Борисовна"]

{"sheet":"История 8","index":2,"n_rows":118,"n_cols":10,"rows_kept":118,"cut":false,"hidden":false,"merged":[[0,2,0,9]]}
[]
[]
[null,null,100]
[]
["№ п/п","Муниципалитет","Шифр (код) выданный ребенку","класс обучается","класс выступает","ОО, в которой обучается (полное название по УСТАВУ)","Количество набранных баллов","Статус","Победитель/призер МЭ 2021-2022 (статус)*","ФИО учителя (наставника)"]
[1,"Московский","И-8-8",8,8,"Муниципальное автономное общеобразовательное учреждение \"Школа № 139\"",79,"победитель",null,"Изосова Ирина Васильевна "]
[2,"Московский","Ис-08-04",8,8,"Муниципальное автономное  общеобразовательное учреждение \"Школа №172\"",75,"победитель"]
[3,"Московский","И-8-1",8,8,"Муниципальное автономное общеобразовательное учреждение \"Школа № 139\"",75,"победитель",null," Изосова Ирина Васильевна"]
[4,"Московский","и-8-6",8,8,"Муниципальное автономное общеобразовательное учреждение  \"Школа № 118 с углубленным изучением отдельных предметов\"",72,"призер"]
[5,"Московский","И-29-09-43",8,8,"Муниципальное бюджетное общеобразовательное учреждение \"Лицей № 87 имени Л.И.Новиковой\"",70,"призер",null,"Щербакова Наталия Владимировна"]
[6,"Московский","И-29-09-44",8,8,"Муниципальное бюджетное общеобразовательное учреждение \"Лицей № 87 имени Л.И.Новиковой\"",69,"призер",null,"Щербакова Наталия Владимировна"]
[7,"Московский","И-29-09-34",8,8,"Муниципальное бюджетное общеобразовательное учреждение \"Лицей № 87 имени Л.И.Новиковой\"",69,"призер",null,"Щербакова Наталия Владимировна"]
[8,"Московский","И-8-2",8,"8Б","Муниципальное автономное общеобразовательное учреждение \"Школа № 139\"",68,"призер",null,"Михайлова  Ольга Анатольевна"]
[9,"Московский","И-29-09-46",8,8,"Муниципальное бюджетное общеобразовательное учреждение \"Лицей № 87 имени Л.И.Новиковой\"",68,"призер",null,"Щербакова Наталия Владимировна"]
[10,"Московский","И-8-10",8,8,"Муниципальное автономное  общеобразовательное учреждение \"Школа № 149\"",68,"призер",null,"Богатова Валентина Николаевна"]
[11,"Московский","И-8-5",8,8,"Муниципальное автономное  общеобразовательное учреждение \"Школа № 149\"",68,"призер",null,"Богатова Валентина Николаевна"]
[12,"Московский","И-8-3",8,8,"муниципальное автономное  общеобразовательное учреждение \"Школа № 70 с углубленным изучением отдельных предметов\"",68,"призер",null,"Михайлова  Ольга Анатольевна"]
[13,"Московский","И-29-09-53",8,8,"Муниципальное бюджетное общеобразовательное учреждение \"Лицей № 87 имени Л.И.Новиковой\"",65,"призер",null,"Михайлова  Ольга Анатольевна"]
[14,"Московский","И-8-3",8,"8Б","Муниципальное автономное общеобразовательное учреждение \"Школа № 139\"",65,"призер",null,"Михайлова  Ольга Анатольевна"]
[15,"Московский","ИВ-1",8,8,"Муниципальное бюджетное общеобразовательное учреждение \"Школа № 93\"",64,"призер",null,"Михайлова  Ольга Анатольевна"]
[16,"Московский","и-8-5",8,8,"Муниципальное автономное общеобразовательное учреждение  \"Школа № 118 с углубленным изучением отдельных предметов\"",63,"призер",null,"Михайлова  Ольга Анатольевна"]
[17,"Московский","И-9-3",8,8,"Муниципальное бюджетное общеобразовательное учреждение \"Школа №73\"",63,"призер",null,"Кузнецова Ольга Николаевна"]
[18,"Московский","И-080339",8,8,"Муниципальное бюджетное общеобразовательное учреждение \"Школа № 69\"",62,"призер",null,"Михайлова  Ольга Анатольевна"]
[19,"Московский","И-8-46",8,8,"Муниципальное автономное  общеобразовательное учреждение \"Школа №178\"",62,"призер",null,"Михайлова  Ольга Анатольевна"]
[20,"Московский","И-8-4",8,8,"Муниципальное автономное общеобразовательное учреждение \"Школа № 74 с углубленным изучением отдельных предметов\"",61,"призер",null,"Морскова Елена Фирсовна"]
[21,"Московский","И -29-09-49",8,8,"Муниципальное бюджетное общеобразовательное учреждение \"Лицей № 87 имени Л.И.Новиковой\"",61,"призер",null,{"$f":"'[1]История 10'!$K$5","v":"Щербакова Наталия Владимировна"}]
[22,"Московский","И-8-1",8,8,"Муниципальное автономное  общеобразовательное учреждение \"Школа № 149\"",60,"призер",null,"Богатова Валентина Николаевна"]
[23,"Московский","И-8-9",8,8,"Муниципальное автономное общеобразовательное учреждение \"Школа № 139\"",59,"призер",null," Изосова Ирина Васильевна"]
[24,"Московский","И-8-4",8,8,"Муниципальное автономное  общеобразовательное учреждение \"Школа № 149\"",58,"призер",null,"Богатова Валентина Николаевна"]
[25,"Московский","и-8-1",8,8,"Муниципальное автономное общеобразовательное учреждение  \"Школа № 118 с углубленным изучением отдельных предметов\"",58,"призер",null,"Тавокина Л.В."]
[26,"Московский","И-29-09-36",8,8,"Муниципальное бюджетное общеобразовательное учреждение \"Лицей № 87 имени Л.И.Новиковой\"",57,"призер",null,{"$f":"'[1]История 10'!$K$5","v":"Щербакова Наталия Владимировна"}]
[27,"Московский","И-8-7",8,8,"муниципальное автономное  общеобразовательное учреждение \"Школа № 70 с углубленным изучением отдельных предметов\"",56,"призер",null,"Михайлова  Ольга Анатольевна"]
[28,"Московский",null,8,8,"муниципальное автономное  общеобразовательное учреждение \"Школа № 70 с углубленным изучением отдельных предметов\"",55,"призер",null,"Михайлова  Ольга Анатольевна"]
[29,"Московский","И-8-9",8,8,"Муниципальное автономное  общеобразовательное учреждение \"Школа № 149\"",54,"призер",null,"Богатова Валентина Николаевна"]
[30,"Московский","и-8-4",8,8,"Муниципальное автономное общеобразовательное учреждение  \"Школа № 118 с углубленным изучением отдельных предметов\"",53,"призер",null,"Тавокина Л.В."]
[31,"Московский","И-8-7",8,8,"Муниципальное автономное общеобразовательное учреждение \"Школа № 74 с углубленным изучением отдельных предметов\"",53,"призер",null,"Морскова Елена Фирсовна"]
[32,"Московский","И-8-4",8,8,"муниципальное автономное  общеобразовательное учреждение \"Школа № 70 с углубленным изучением отдельных предметов\"",53,"призер",null,"Михайлова  Ольга Анатольевна"]
[33,"Московский","и-8-3",8,8,"Муниципальное автономное общеобразовательное учреждение  \"Школа № 118 с углубленным изучением отдельных предметов\"",52,"призер",null,"Тавокина Л.В."]
[34,"Московский","И-8-5",8,8,"Муниципальное бюджетное общеобразовательное учреждение \"Школа № 115\"",52,"призер",null,"Симахина Евгения Александровна"]
[35,"Московский","И-8-44",8,8,"Муниципальное автономное  общеобразовательное учреждение \"Школа №178\"",52,"призер",null,"Анасенкова Светлана Валентиновна"]
[36,"Московский","ИВ-4",8,8,"Муниципальное бюджетное общеобразовательное учреждение \"Школа № 93\"",52,"призер",null,"Рослова Лариса Вячеславовна"]
[37,"Московский","и-8-2",8,8,"Муниципальное автономное общеобразовательное учреждение  \"Школа № 118 с углубленным изучением отдельных предметов\"",51,"призер",null,"Тавокина Л.В."]
[38,"Московский","ИС-08-25",8,8,"Муниципальное бюджетное общеобразовательное учреждение \"Школа №21\"",51,"призер",null,"Лошаков Андрей Михайлович"]
[39,"Московский","И-8-11",8,8,"Муниципальное автономное  общеобразовательное учреждение \"Школа № 149\"",49,"участник",null,"Богатова Валентина Николаевна"]
[40,"Московский","И-29-09-41",8,8,"Муниципальное бюджетное общеобразовательное учреждение \"Лицей № 87 имени Л.И.Новиковой\"",48,"участник",null,{"$f":"'[1]История 10'!$K$5","v":"Щербакова Наталия Владимировна"}]
[41,"Московский","И-8-10",8,8,"муниципальное автономное  общеобразовательное учреждение \"Школа № 70 с углубленным изучением отдельных предметов\"",47,"участник",null,"Михайлова  Ольга Анатольевна"]
[42,"Московский","И-080239",8,8,"Муниципальное бюджетное общеобразовательное учреждение \"Школа № 69\"",46,"участник",null,"Миртова Ирина Владимировна"]
[43,"Московский","И-010139",8,8,"Муниципальное бюджетное общеобразовательное учреждение \"Школа № 69\"",46,"участник",null,"Миртова Ирина Владимировна"]
[44,"Московский","И-8-6",8,8,"Муниципальное бюджетное общеобразовательное учреждение \"Школа № 115\"",46,"участник",null,"Симахина Евгения Александровна"]
[45,"Московский","И-8-1",8,8,"Муниципальное бюджетное общеобразовательное учреждение \"Школа №64\"",45,"участник",null,"Громов Н.Е."]
[46,"Московский","И-8-5",8,8,"Муниципальное автономное общеобразовательное учреждение \"Школа № 74 с углубленным изучением отдельных предметов\"",44,"участник",null,"Морскова Елена Фирсовна"]
[47,"Московский","И-8-11",8,8,"муниципальное автономное  общеобразовательное учреждение \"Школа № 70 с углубленным изучением отдельных предметов\"",44,"участник",null,"Михайлова  Ольга Анатольевна"]
[48,"Московский","И-080539",8,8,"Муниципальное бюджетное общеобразовательное учреждение \"Школа № 69\"",43,"участник",null,"Миртова Ирина Владимировна"]
[49,"Московский","И-8-9",8,8,"муниципальное автономное  общеобразовательное учреждение \"Школа № 70 с углубленным изучением отдельных предметов\"",43,"участник",null,"Михайлова  Ольга Анатольевна"]
[50,"Московский","И-8-43",8,8,"Муниципальное автономное  общеобразовательное учреждение \"Школа №178\"",43,"участник",null,"Анасенкова Светлана Валентиновна"]
[51,"Московский","И-8-6",8,8,"муниципальное автономное  общеобразовательное учреждение \"Школа № 70 с углубленным изучением отдельных предметов\"",43,"участник",null,"Михайлова  Ольга Анатольевна"]
[52,"Московский","И-8-2",8,8,"Муниципальное автономное  общеобразовательное учреждение \"Школа № 149\"",42,"участник",null,"Богатова Валентина Николаевна"]
[53,"Московский","И-8-7",8,8,"Муниципальное автономное  общеобразовательное учреждение \"Школа № 149\"",42,"участник",null,"Богатова Валентина Николаевна"]
[54,"Московский","И-29-09-51",8,8,"Муниципальное бюджетное общеобразовательное учреждение \"Лицей № 87 имени Л.И.Новиковой\"",42,"участник",null,{"$f":"'[1]История 10'!$K$5","v":"Щербакова Наталия Владимировна"}]
[55,"Московский","Ис-08-06",8,8,"Муниципальное автономное  общеобразовательное учреждение \"Школа №172\"",42,"участник",null,"Гаммель А.В."]
[56,"Московский","И-080439",8,8,"Муниципальное бюджетное общеобразовательное учреждение \"Школа № 69\"",41,"участник",null,"Миртова Ирина Владимировна"]
[57,"Московский","ИС-08-21",8,8,"Муниципальное бюджетное общеобразовательное учреждение \"Школа №21\"",41,"участник",null,"Лошаков Андрей Михайлович"]
[58,"Московский","и-8-7",8,8,"Муниципальное автономное общеобразовательное учреждение  \"Школа № 118 с углубленным изучением отдельных предметов\"",40,"участник",null,"Тавокина Л.В."]
[59,"Московский","Ис-08-05",8,8,"Муниципальное автономное  общеобразовательное учреждение \"Школа №172\"",40,"участник",null,"Гаммель А.В."]
[60,"Московский","И-29-09-47",8,8,"Муниципальное бюджетное общеобразовательное учреждение \"Лицей № 87 имени Л.И.Новиковой\"",40,"участник",null,{"$f":"'[1]История 10'!$K$5","v":"Щербакова Наталия Владимировна"}]
[61,"Московский","Ис-08-03",8,8,"Муниципальное автономное  общеобразовательное учреждение \"Школа №172\"",40,"участник",null,"Гаммель А.В."]
[62,"Московский","И-080139",8,8,"Муниципальное бюджетное общеобразовательное учреждение \"Школа № 69\"",40,"участник",null,"Миртова Ирина Владимировна"]
[63,"Московский","и-8-10",8,8,"Муниципальное автономное общеобразовательное учреждение  \"Школа № 118 с углубленным изучением отдельных предметов\"",39,"участник",null,"Тавокина Л.В."]
[64,"Московский","и-8-9",8,8,"Муниципальное автономное общеобразовательное учреждение  \"Школа № 118 с углубленным изучением отдельных предметов\"",39,"участник",null,"Тавокина Л.В."]
[65,"Московский",2,8,8,"Государственное казенное общеобразовательное учреждение \"Школа-интернат №2\"",39,"участник","нет","Ромашова Ольга Валерьевна"]
[66,"Московский","Ис-08-01",8,8,"Муниципальное автономное  общеобразовательное учреждение \"Школа №172\"",39,"участник",null,"Гаммель А.В."]
[67,"Московский","и-8-8",8,8,"Муниципальное автономное общеобразовательное учреждение  \"Школа № 118 с углубленным изучением отдельных предметов\"",39,"участник",null,"Тавокина Л.В."]
[68,"Московский","И-8-9",8,8,"Муниципальное автономное общеобразовательное учреждение \"Школа № 74 с углубленным изучением отдельных предметов\"",38,"участник",null,"Морскова Елена Фирсовна"]
[69,"Московский","И-8-12",8,8,"Муниципальное автономное  общеобразовательное учреждение \"Школа № 149\"",38,"участник",null,"Богатова Валентина Николаевна"]
[70,"Московский","и-8-11",8,8,"Муниципальное автономное общеобразовательное учреждение  \"Школа № 118 с углубленным изучением отдельных предметов\"",38,"участник",null,"Тавокина Л.В."]
[71,"Московский","И-8-1",8,8,"Муниципальное бюджетное общеобразовательное учреждение \"Школа № 115\"",37,"участник",null,"Жукова Евгения Борисовна"]
[72,"Московский","ИС-08-02",8,8,"Муниципальное автономное общеобразовательное учреждение \"Гимназия № 67\"",37,"участник",null,"Егоров Вадим Валерьевич"]
[73,"Московский","И-8-8",8,8,"Муниципальное автономное  общеобразовательное учреждение \"Школа № 149\"",37,"участник",null,"Богатова Валентина Николаевна"]
[74,"Московский","И-8-45",8,8,"Муниципальное автономное  общеобразовательное учреждение \"Школа №178\"",37,"участник",null,"Анасенкова Светлана Валентиновна"]
[75,"Московский","И-8-5","8А","8А","Муниципальное автономное общеобразовательное учреждение \"Школа № 139\"",36,"участник",null," Изосова Ирина Васильевна"]
[76,"Московский","И8А-1",8,8,"Муниципальное бюджетное общеобразовательное учреждение \"Школа № 66\"",35,"участник",null,"Малов Сергей Вячеславович"]
[77,"Московский","И-8-13",8,8,"Муниципальное автономное  общеобразовательное учреждение \"Школа № 149\"",35,"участник",null,"Богатова Валентина Николаевна"]
[78,"Московский","И-8-2",8,8,"муниципальное автономное  общеобразовательное учреждение \"Школа № 70 с углубленным изучением отдельных предметов\"",35,"участник",null,"Михайлова  Ольга Анатольевна"]
[79,"Московский","И-8-3",8,8,"Муниципальное автономное  общеобразовательное учреждение \"Школа № 149\"",35,"участник",null,"Богатова Валентина Николаевна"]
[80,"Московский","ИС-08-03",8,8,"Муниципальное автономное общеобразовательное учреждение \"Гимназия № 67\"",34,"участник",null,"Егоров Вадим Валерьевич"]
[81,"Московский","И-8-3",8,8,"Муниципальное автономное общеобразовательное учреждение \"Школа № 74 с углубленным изучением отдельных предметов\"",33,"участник",null,"Морскова Елена Фирсовна"]
[82,"Московский","И-9-2",8,8,"Муниципальное бюджетное общеобразовательное учреждение \"Школа №73\"",32,"участник",null,"Кузнецова Ольга Николаевна"]
[83,"Московский","И-8-4","8В","8В","Муниципальное автономное общеобразовательное учреждение \"Школа № 139\"",32,"участник",null," Изосова Ирина Васильевна"]
[84,"Московский","И-8-14",8,8,"Муниципальное автономное  общеобразовательное учреждение \"Школа № 149\"",32,"участник",null,"Богатова Валентина Николаевна"]
[85,"Московский","И8-1",8,8,"Муниципальное  бюджетное  общеобразовательное учреждение \"Школа № 146\"",32,"участник",null,"Писаревская Наталья Николаевна"]
[86,"Московский","И8-2",8,8,"Муниципальное  бюджетное  общеобразовательное учреждение \"Школа № 146\"",32,"участник",null,"Писаревская Наталья Николаевна"]
[87,"Московский","И-8-3",8,8,"Муниципальное бюджетное общеобразовательное учреждение \"Школа № 115\"",32,"участник",null,"Жукова Евгения Борисовна"]
[88,"Московский","И8А-7",8,8,"Муниципальное бюджетное общеобразовательное учреждение \"Школа № 66\"",32,"участник","Призер","Малов Сергей Вячеславович"]
[89,"Московский","И-8-7","8Б","8Б","Муниципальное автономное общеобразовательное учреждение \"Школа № 139\"",31,"участник",null," Изосова Ирина Васильевна"]
[90,"Московский","И-8-15",8,null,"Муниципальное автономное  общеобразовательное учреждение \"Школа № 149\"",30,"участник",null,"Богатова Валентина Николаевна"]
[91,"Московский","И-8-2",8,8,"Муниципальное бюджетное общеобразовательное учреждение \"Школа №64\"",30,"участник",null,"Громов Н.Е."]
[92,"Московский","Ис-08-02",8,8,"Муниципальное автономное  общеобразовательное учреждение \"Школа №172\"",30,"участник",null,"Гаммель А.В."]
[93,"Московский","И-8-6",8,8,"Муниципальное автономное  общеобразовательное учреждение \"Школа № 149\"",30,"участник",null,"Богатова Валентина Николаевна"]
[94,"Московский","И-8-6","8А","8А","Муниципальное автономное общеобразовательное учреждение \"Школа № 139\"",30,"участник",null," Изосова Ирина Васильевна"]
[95,"Московский","И-8-8",8,8,"муниципальное автономное  общеобразовательное учреждение \"Школа № 70 с углубленным изучением отдельных предметов\"",30,"участник",null,"Михайлова  Ольга Анатольевна"]
[96,"Московский","И-8-3",8,8,"Муниципальное бюджетное общеобразовательное учреждение \"Школа №64\"",29,"участник",null,"Громов Н.Е."]
[97,"Московский","И-8-5",8,8,"муниципальное автономное  общеобразовательное учреждение \"Школа № 70 с углубленным изучением отдельных предметов\"",28,"участник",null,"Михайлова  Ольга Анатольевна"]
[98,"Московский","И-8-13",8,8,"муниципальное автономное  общеобразовательное учреждение \"Школа № 70 с углубленным изучением отдельных предметов\"",28,"участник",null,"Михайлова  Ольга Анатольевна"]
[99,"Московский","И8Б-3",8,8,"Муниципальное бюджетное общеобразовательное учреждение \"Школа № 66\"",27,"участник",null,"Малов Сергей Вячеславович"]
[100,"Московский","И-8-4",8,8,"Муниципальное бюджетное общеобразовательное учреждение \"Школа №64\"",27,"участник",null,"Громов Н.Е."]
[101,"Московский","И-8-4",8,8,"Муниципальное бюджетное общеобразовательное учреждение \"Школа № 115\"",26,"участник",null,"Жукова Евгения Борисовна"]
[102,"Московский","И8Б-6",8,8,"Муниципальное бюджетное общеобразовательное учреждение \"Школа № 66\"",26,"участник",null,"Малов Сергей Вячеславович"]
[103,"Московский","И-8-2",8,8,"Муниципальное автономное общеобразовательное учреждение \"Школа № 74 с углубленным изучением отдельных предметов\"",26,"участник",null,"Морскова Елена Фирсовна"]
[104,"Московский","ИВ-2",8,8,"Муниципальное бюджетное общеобразовательное учреждение \"Школа № 93\"",24,"участник",null,"Рослова Лариса Вячеславовна"]
[105,"Московский","ИС-08-01",8,8,"Муниципальное автономное общеобразовательное учреждение \"Гимназия № 67\"",24,"участник",null,"Егоров Вадим Валерьевич"]
[106,"Московский","И8А-5",8,8,"Муниципальное бюджетное общеобразовательное учреждение \"Школа № 66\"",24,"участник",null,"Малов Сергей Вячеславович"]
[107,"Московский","И-8-1",8,8,"муниципальное автономное  общеобразовательное учреждение \"Школа № 70 с углубленным изучением отдельных предметов\"",22,"участник",null,"Михайлова  Ольга Анатольевна"]
[108,"Московский","ИВ-3",8,8,"Муниципальное бюджетное общеобразовательное учреждение \"Школа № 93\"",22,"участник",null,"Рослова Лариса Вячеславовна"]
[109,"Московский","И-9-1",8,8,"Муниципальное бюджетное общеобразовательное учреждение \"Школа №73\"",20,"участник",null,"Кузнецова Ольга Николаевна"]
[110,"Московский","И-8-5",8,8,"Муниципальное бюджетное общеобразовательное учреждение \"Школа №64\"",18,"участник",null,"Громов Н.Е."]
[111,"Московский","И8А-4",8,8,"Муниципальное бюджетное общеобразовательное учреждение \"Школа № 66\"",15,"участник",null,"Малов Сергей Вячеславович"]
[112,"Московский","И8А-2",8,8,"Муниципальное бюджетное общеобразовательное учреждение \"Школа № 66\"",14,"участник",null,"Малов Сергей Вячеславович"]
[113,"Московский","И-8-16",8,8,"Муниципальное автономное общеобразовательное учреждение \"Школа № 74 с углубленным изучением отдельных предметов\"",13,"участник",null,"Морскова Елена Фирсовна"]

{"sheet":"История 9","index":3,"n_rows":101,"n_cols":11,"rows_kept":101,"cut":false,"hidden":false,"merged":[[0,2,0,9]]}
[]
[]
[null,null,100]
[]
[]
["№ п/п","Муниципалитет","Шифр (код) выданный ребенку","класс обучается","класс выступает","ОО, в которой обучается (полное название по УСТАВУ)","Количество набранных баллов","Статус","Победитель/призер МЭ 2021-2022 (статус)*","ФИО учителя (наставника)","ФИО учителя (наставника)**"]
[1,"Московский","ИС-09-02",9,9,"Муниципальное автономное общеобразовательное учреждение \"Гимназия № 67\"",88,"победитель ",null,"Егоров Вадим Валерьевич"]
[2,"Московский","И-9-3",9,9,"муниципальное автономное  общеобразовательное учреждение \"Школа № 70 с углубленным изучением отдельных предметов\"",82,"победитель ",null,"Михайлова  Ольга Анатольевна"]
[3,"Московский","ИС-09-05",9,9,"Муниципальное автономное общеобразовательное учреждение \"Гимназия № 67\"",79,"призер",null,"Егоров Вадим Валерьевич"]
[4,"Московский","ИД-3",9,9,"Муниципальное бюджетное общеобразовательное учреждение \"Школа № 93\"",78,"призер","победитель","Рослова Лариса Вячеславовна"]
[5,"Московский","ИС-09-01",9,9,"Муниципальное автономное общеобразовательное учреждение \"Гимназия № 67\"",77,"призер",null,"Егоров Вадим Валерьевич"]
[6,"Московский","Ис-09-01",9,9,"Муниципальное автономное общеобразовательное учреждение \"Школа № 172\"",75,"призер",null,"Карпова О.В."]
[7,"Московский","И 9-8",9,9,"Муниципальное автономное  общеобразовательное учреждение \"Школа № 149\"",72,"призер",null,"Селегененко Любовь Валерьевна"]
[8,"Московский","И-9-4",9,9,"муниципальное автономное  общеобразовательное учреждение \"Школа № 70 с углубленным изучением отдельных предметов\"",71,"призер",null,"Михайлова  Ольга Анатольевна"]
[9,"Московский","И 9-5",9,9,"Муниципальное автономное  общеобразовательное учреждение \"Школа № 149\"",68,"призер",null,"Селегененко Любовь Валерьевна"]
[10,"Московский","И 9-3",9,9,"Муниципальное автономное  общеобразовательное учреждение \"Школа № 149\"",68,"призер",null,"Селегененко Любовь Валерьевна"]
[11,"Московский","И9А-2",9,9,"Муниципальное бюджетное общеобразовательное учреждение \"Школа № 66\"",67,"призер",null,"Малов Сергей Вячеславович"]
[12,"Московский","ИС-09-70",9,9,"Муниципальное бюджетное общеобразовательное учреждение \"Школа №21\"",66,"призер",null,"Лошаков Андрей Михайлович"]
[13,"Московский","ИС-09-04",9,9,"Муниципальное автономное общеобразовательное учреждение \"Гимназия № 67\"",65,"призер",null,"Егоров Вадим Валерьевич"]
[14,"Московский","И 9-1",9,9,"Муниципальное автономное  общеобразовательное учреждение \"Школа № 149\"",65,"призер",null,"Селегененко Любовь Валерьевна"]
[15,"Московский","Ис-09-05",9,9,"Муниципальное автономное общеобразовательное учреждение \"Школа № 172\"",64,"призер",null,"Карпова О.В."]
[16,"Московский","И-9-1",9,9,"Муниципальное бюджетное общеобразовательное учреждение \"Школа № 115\"",63,"призер",null,"Симахина Евгения Александровна"]
[17,"Московский","И9-1",9,9,"Муниципальное бюджетное общеобразовательное учреждение \"Школа № 146\"",62,"призер",null,"Писаревская Наталья Николаевна"]
[18,"Московский","ИД-1",9,9,"Муниципальное бюджетное общеобразовательное учреждение \"Школа № 93\"",62,"призер",null,"Рослова Лариса Вячеславовна"]
[19,"Московский","И9-2",9,9,"Муниципальное бюджетное общеобразовательное учреждение \"Школа № 146\"",59,"призер",null,"Писаревская Наталья Николаевна"]
[20,"Московский","И9-3",9,9,"Муниципальное бюджетное общеобразовательное учреждение \"Школа № 146\"",59,"призер",null,"Писаревская Наталья Николаевна"]
[21,"Московский","И-9-24",9,9,"Муниципальное автономное общеобразовательное учреждение \"Школа № 74 с углубленным изучением отдельных предметов\"",58,"призер",null,"Морскова Елена Фирсовна"]
[22,"Московский","И-9-3",9,9,"Муниципальное автономное общеобразовательное учреждение \"Школа № 139\"",58,"призер",null,"Данилова Людмила Николаевна"]
[23,"Московский","И-9-42",9,9,"Муниципальное автономное  общеобразовательное учреждение \"Школа № 178\"",56,"призер",null,"Дубынина Ирина Николаевна"]
[24,"Московский","ИД-4",9,9,"Муниципальное бюджетное общеобразовательное учреждение \"Школа № 93\"",56,"призер",null,"Рослова Лариса Вячеславовна"]
[25,"Московский","И-9-1",9,9,"муниципальное автономное  общеобразовательное учреждение \"Школа № 70 с углубленным изучением отдельных предметов\"",53,"призер",null,"Михайлова  Ольга Анатольевна"]
[26,"Московский","И9В-1",9,9,"Муниципальное бюджетное общеобразовательное учреждение \"Школа № 66\"",53,"призер",null,"Малов Сергей Вячеславович"]
[27,"Московский","И-9-5",9,9,"муниципальное автономное  общеобразовательное учреждение \"Школа № 70 с углубленным изучением отдельных предметов\"",52,"призер",null,"Михайлова  Ольга Анатольевна"]
[28,"Московский","и-9-5",9,9,"Муниципальное автономное общеобразовательное учреждение  \"Школа № 118 с углубленным изучением отдельных предметов\"",51,"призер",null,"Хехнев Александр Владимирович"]
[29,"Московский","И-9-7",9,9,"Муниципальное автономное  общеобразовательное учреждение \"Школа № 178\"",50,"призер",null,"Дубынина Ирина Николаевна"]
[30,"Московский","ИС-09-72",9,9,"Муниципальное бюджетное общеобразовательное учреждение \"Школа №21\"",50,"призер",null,"Лошаков Андрей Михайлович"]
[31,"Московский","И-090539",9,9,"Муниципальное бюджетное общеобразовательное учреждение \"Школа № 69\"",48,"участник",null,"Миртова Ирина Владимировна"]
[32,"Московский","И-090639",9,9,"Муниципальное бюджетное общеобразовательное учреждение \"Школа № 69\"",48,"участник",null,"Миртова Ирина Владимировна"]
[33,"Московский","И-090139",9,9,"Муниципальное бюджетное общеобразовательное учреждение \"Школа № 69\"",46,"участник",null,"Миртова Ирина Владимировна"]
[34,"Московский","И-9-3",9,9,"Муниципальное бюджетное общеобразовательное учреждение \"Школа №64\"",46,"участник",null,"Громов Н.Е."]
[35,"Московский","и-9-6",9,9,"Муниципальное автономное общеобразовательное учреждение  \"Школа № 118 с углубленным изучением отдельных предметов\"",45,"участник",null,"Хехнев Александр Владимирович"]
[36,"Московский","И-9-2",9,9,"муниципальное автономное  общеобразовательное учреждение \"Школа № 70 с углубленным изучением отдельных предметов\"",43,"участник",null,"Михайлова  Ольга Анатольевна"]
[37,"Московский","И-9-5",9,9,"Муниципальное бюджетное общеобразовательное учреждение \"Школа № 115\"",41,"участник",null,"Жукова Евгения Борисовна"]
[38,"Московский","И-9-7",9,9,"Муниципальное автономное общеобразовательное учреждение \"Школа № 139\"",41,"участник",null,"Данилова Людмила Николаевна"]
[39,"Московский","ИС-09-06",9,9,"Муниципальное автономное общеобразовательное учреждение \"Гимназия № 67\"",41,"участник",null,"Егоров Вадим Валерьевич"]
[40,"Московский","И-9-5",9,9,"Муниципальное автономное общеобразовательное учреждение \"Школа № 139\"",41,"участник",null,"Данилова Людмила Николаевна"]
[41,"Московский","И-9-2",9,9,"Муниципальное бюджетное общеобразовательное учреждение \"Школа №64\"",40,"участник",null,"Громов Н.Е."]
[42,"Московский","и-9-7",9,9,"Муниципальное автономное общеобразовательное учреждение  \"Школа № 118 с углубленным изучением отдельных предметов\"",39,"участник",null,"Хехнев Александр Владимирович"]
[43,"Московский","И-090239",9,9,"Муниципальное бюджетное общеобразовательное учреждение \"Школа № 69\"",37,"участник",null,"Миртова Ирина Владимировна"]
[44,"Московский","И 9-4",9,9,"Муниципальное автономное  общеобразовательное учреждение \"Школа № 149\"",37,"участник",null,"Селегененко Любовь Валерьевна"]
[45,"Московский","И-9-8",9,9,"Муниципальное автономное  общеобразовательное учреждение \"Школа № 178\"",37,"участник",null,"Анасенкова Светлана Валентиновна"]
[46,"Московский","И 9-9",9,9,"Муниципальное автономное  общеобразовательное учреждение \"Школа № 149\"",36,"участник",null,"Селегененко Любовь Валерьевна"]
[47,"Московский","ИС-09-03",9,9,"Муниципальное автономное общеобразовательное учреждение \"Гимназия № 67\"",36,"участник",null,"Егоров Вадим Валерьевич"]
[48,"Московский","Ис-09-03",9,9,"Муниципальное автономное общеобразовательное учреждение \"Школа № 172\"",36,"участник",null,"Гаммель А.В."]
[49,"Московский","И-9-8",9,9,"Муниципальное автономное общеобразовательное учреждение \"Школа № 139\"",35,"участник",null,"Данилова Людмила Николаевна"]
[50,"Московский","И-9-2",9,9,"Муниципальное автономное общеобразовательное учреждение \"Школа № 139\"",35,"участник",null,"Данилова Людмила Николаевна"]
[51,"Московский","И-9-8",9,9,"Муниципальное бюджетное общеобразовательное учреждение \"Школа № 115\"",34,"участник",null,"Жукова Евгения Борисовна"]
[52,"Московский","И-9-1",9,9,"Муниципальное автономное общеобразовательное учреждение \"Школа № 139\"",34,"участник",null,"Данилова Людмила Николаевна"]
[53,"Московский","И-9-6",9,9,"Муниципальное автономное общеобразовательное учреждение \"Школа № 139\"",34,"участник",null,"Данилова Людмила Николаевна"]
[54,"Московский",4,9,9,"Государственное казенное общеобразовательное учреждение \"Школа-интернат №2\"",33,"участник",null,"Ромашова Ольга Валерьевна"]
[55,"Московский","И-9-6",9,9,"Муниципальное бюджетное общеобразовательное учреждение \"Школа № 115\"",33,"участник",null,"Жукова Евгения Борисовна"]
[56,"Московский","И-9-6",9,9,"Муниципальное автономное  общеобразовательное учреждение \"Школа № 178\"",32,"участник",null,"Дубынина Ирина Николаевна"]
[57,"Московский","И-090339",9,9,"Муниципальное бюджетное общеобразовательное учреждение \"Школа № 69\"",32,"участник",null,"Миртова Ирина Владимировна"]
[58,"Московский","И 9-2",9,9,"Муниципальное автономное  общеобразовательное учреждение \"Школа № 149\"",32,"участник",null,"Селегененко Любовь Валерьевна"]
[59,"Московский","И-9-1",9,9,"Муниципальное бюджетное общеобразовательное учреждение \"Школа №64\"",29,"участник",null,"Громов Н.Е."]
[60,"Московский","И-9-9",9,9,"Муниципальное автономное  общеобразовательное учреждение \"Школа № 178\"",29,"участник",null,"Анасенкова Светлана Валентиновна"]
[61,"Московский","И-9-22",9,9,"Муниципальное автономное общеобразовательное учреждение \"Школа № 74 с углубленным изучением отдельных предметов\"",28,"участник",null,"Морскова Елена Фирсовна"]
[62,"Московский","И 9-6",9,9,"Муниципальное автономное  общеобразовательное учреждение \"Школа № 149\"",27,"участник",null,"Селегененко Любовь Валерьевна"]
[63,"Московский","Ис-09-04",9,9,"Муниципальное автономное общеобразовательное учреждение \"Школа № 172\"",27,"участник",null,"Гаммель А.В"]
[64,"Московский",5,9,9,"Государственное казенное общеобразовательное учреждение \"Школа-интернат №2\"",27,"участник","нет","Ромашова Ольга Валерьевна"]
[65,"Московский","Ис-09-02",9,9,"Муниципальное автономное общеобразовательное учреждение \"Школа № 172\"",26,"участник",null,"Гаммель А.В."]
[66,"Московский","И-9-4",9,9,"Муниципальное бюджетное общеобразовательное учреждение \"Школа № 115\"",26,"участник",null,"Жукова Евгения Борисовна"]
[67,"Московский","И-29-09-42",9,9,"Муниципальное бюджетное общеобразовательное учреждение \"Лицей № 87 имени Л.И. Новиковой\"",26,"участник",null,"Дойников Максим Сергеевич"]
[68,"Московский","ИС-09-07",9,9,"Муниципальное автономное общеобразовательное учреждение \"Гимназия № 67\"",26,"участник",null,"Егоров Вадим Валерьевич"]
[69,"Московский",3,9,9,"Государственное казенное общеобразовательное учреждение \"Школа-интернат №2\"",24,"участник",null,"Ромашова Ольга Валерьевна"]
[70,"Московский","и-9-2",9,9,"Муниципальное автономное общеобразовательное учреждение  \"Школа № 118 с углубленным изучением отдельных предметов\"",24,"участник",null,"Сосенкова С.А."]
[71,"Московский","И-9-7",9,9,"Муниципальное бюджетное общеобразовательное учреждение \"Школа № 115\"",24,"участник",null,"Жукова Евгения Борисовна"]
[72,"Московский","И-090439",9,9,"Муниципальное бюджетное общеобразовательное учреждение \"Школа № 69\"",24,"участник",null,"Миртова Ирина Владимировна"]
[73,"Московский","ИД-2",9,9,"Муниципальное бюджетное общеобразовательное учреждение \"Школа № 93\"",23,"участник",null,"Рослова Лариса Вячеславовна"]
[74,"Московский","И-9-2","9а",9,"Муниципальное бюджетное общеобразовательное учреждение \"Школа №73\"",23,"участник",null,"Кузнецова Ольга Николаевна"]
[75,"Московский","и-9-4",9,9,"Муниципальное автономное общеобразовательное учреждение  \"Школа № 118 с углубленным изучением отдельных предметов\"",23,"участник",null,"Сосенкова С.А."]
[76,"Московский","И 9-7",9,9,"Муниципальное автономное  общеобразовательное учреждение \"Школа № 149\"",23,"участник",null,"Селегененко Любовь Валерьевна"]
[77,"Московский","И-9-5",9,9,"Муниципальное автономное  общеобразовательное учреждение \"Школа № 178\"",22,"участник",null,"Чеснокова Ольга Андреевна"]
[78,"Московский","ИД-6",9,9,"Муниципальное бюджетное общеобразовательное учреждение \"Школа № 93\"",21,"участник",null,"Рослова Лариса Вячеславовна"]
[79,"Московский","Н-29-09-40",9,9,"Муниципальное бюджетное общеобразовательное учреждение \"Лицей № 87 имени Л.И. Новиковой\"",21,"участник",null,"Дойников Максим Сергеевич"]
[80,"Московский","И-9-3",9,9,"Муниципальное бюджетное общеобразовательное учреждение \"Школа № 115\"",21,"участник",null,"Симахина Евгения Александровна"]
[81,"Московский","И-9-9",9,9,"Муниципальное бюджетное общеобразовательное учреждение \"Школа № 115\"",20,"участник",null,"Жукова Евгения Борисовна"]
[82,"Московский","И-9-4",9,9,"Муниципальное автономное  общеобразовательное учреждение \"Школа № 178\"",20,"участник",null,"Чеснокова Ольга Андреевна"]
[83,"Московский","И-29-09-38",9,9,"Муниципальное бюджетное общеобразовательное учреждение \"Лицей № 87 имени Л.И. Новиковой\"",20,"участник",null,"Дойников Максим Сергеевич"]
[84,"Московский","и-9-3",9,9,"Муниципальное автономное общеобразовательное учреждение  \"Школа № 118 с углубленным изучением отдельных предметов\"",20,"участник",null,"Тавокина Л.В."]
[85,"Московский","И-29-09-39",9,9,"Муниципальное бюджетное общеобразовательное учреждение \"Лицей № 87 имени Л.И. Новиковой\"",19,"участник",null,"Дойников Максим Сергеевич"]
[86,"Московский","И-9-4",9,9,"Муниципальное бюджетное общеобразовательное учреждение \"Школа №64\"",19,"участник",null,"Громов Н.Е."]
[87,"Московский","И-29-09-48",9,9,"Муниципальное бюджетное общеобразовательное учреждение \"Лицей № 87 имени Л.И. Новиковой\"",19,"участник",null,"Дойников Максим Сергеевич"]
[88,"Московский","ИД-5",9,9,"Муниципальное бюджетное общеобразовательное учреждение \"Школа № 93\"",17,"участник",null,"Рослова Лариса Вячеславовна"]
[89,"Московский","И-9-10",9,9,"Муниципальное бюджетное общеобразовательное учреждение \"Школа № 115\"",16,"участник",null,"Жукова Евгения Борисовна"]
[90,"Московский",6,9,9,"Государственное казенное общеобразовательное учреждение \"Школа-интернат №2\"",16,"участник","нет","Ромашова Ольга Валерьевна"]
[91,"Московский","И-9-4",9,9,"Муниципальное автономное общеобразовательное учреждение \"Школа № 139\"",15,"участник",null,"Данилова Людмила Николаевна"]
[92,"Московский","Н-29-09-52",9,9,"Муниципальное бюджетное общеобразовательное учреждение \"Лицей № 87 имени Л.И. Новиковой\"",15,"участник",null,"Дойников Максим Сергеевич"]
[93,"Московский","и-9-1",9,9,"Муниципальное автономное общеобразовательное учреждение  \"Школа № 118 с углубленным изучением отдельных предметов\"",15,"участник",null,"Тавокина Л.В."]
[94,"Московский","И-9-1",9,9,"Муниципальное бюджетное общеобразовательное учреждение \"Школа №73\"",12,"участник",null,"Кузнецова Ольга Николаевна"]
[95,"Московский","И-29-09-50",9,9,"Муниципальное бюджетное общеобразовательное учреждение \"Лицей № 87 имени Л.И. Новиковой\"",12,"участник",null,"Дойников Максим Сергеевич"]

{"sheet":"История 10","index":4,"n_rows":69,"n_cols":11,"rows_kept":69,"cut":false,"hidden":false,"merged":[[0,2,0,9]]}
[]
[]
[null,null,100]
[]
[]
["№ п/п","Муниципалитет","Шифр (код) выданный ребенку","класс обучается","класс выступает","ОО, в которой обучается (полное название по УСТАВУ)","Количество набранных баллов","Статус","Победитель/призер МЭ 2021-2022 (статус)*","ФИО учителя (наставника)","ФИО учителя (наставника)**"]
[1,"Московский","И-1336",10,10,"Муниципальное бюджетное общеобразовательное учреждение \"Школа № 69\"",74,"победитель ","призер","Муравьева Ольга Николаевна"]
[2,"Московский",null,10,10,"Муниципальное бюджетное общеобразовательное учреждение \"Лицей № 87 имени Л.И. Новиковой\"",73,"победитель ",null,"Щербакова Наталия Владимировна"]
[3,"Московский","ИС-10-03",10,10,"Муниципальное автономное общеобразовательное учреждение \"Гимназия № 67\"",73,"победитель ",null,"Романов Сергей Николаевич."]
[4,"Московский","и-10-7",10,10,"Муниципальное автономное общеобразовательное учреждение  \"Школа № 118 с углубленным изучением отдельных предметов\"",72,"призер ",null,"Хехнев Александр Владимирович"]
[5,"Московский","И-10-1",10,10,"муниципальное автономное  общеобразовательное учреждение \"Школа № 70 с углубленным изучением отдельных предметов\"",71,"призер ",null,"Михайлова  Ольга Анатольевна"]
[6,"Московский",null,10,10,"Муниципальное бюджетное общеобразовательное учреждение \"Лицей № 87 имени Л.И. Новиковой\"",67,"призер ",null,"Михайлова  Ольга Анатольевна"]
[7,"Московский","И-10-4",10,10,"Муниципальное бюджетное общеобразовательное учреждение \"Школа № 115\"",65,"призер ",null,"Жукова Евгения Борисовна"]
[8,"Московский","ИДС-1",10,10,"Муниципальное бюджетное общеобразовательное учреждение \"Школа № 93\"",63,"призер ",null,"Михайлова  Ольга Анатольевна"]
[9,"Московский","ИС-10-05",10,10,"Муниципальное автономное общеобразовательное учреждение \"Гимназия № 67\"",61,"призер ",null,"Михайлова  Ольга Анатольевна"]
[10,"Московский","ИС-10-26",10,10,"Муниципальное бюджетное  общеобразовательное учреждение \"Школа № 21\"",59,"призер ",null,"Лошаков Андрей Михайлович"]
[11,"Московский","И10А-2",10,10,"Муниципальное бюджетное общеобразовательное учреждение \"Школа № 66\"",57,"призер ",null,"Прошунина Галина Петровна"]
[12,"Московский","Ис-10-06",10,10,"Муниципальное автономное общеобразовательное учреждение \"Школа № 172\"",57,"призер ",null,"Хехнев Александр Владимирович"]
[13,"Московский","И-10-2",10,10,"Муниципальное бюджетное общеобразовательное учреждение \"Школа № 115\"",55,"призер ",null,"Жукова Евгения Борисовна"]
[14,"Московский","И-1436",10,10,"Муниципальное бюджетное общеобразовательное учреждение \"Школа № 69\"",54,"призер ","призер","Хехнев Александр Владимирович"]
[15,"Московский","И-10-10",10,10,"Муниципальное автономное  общеобразовательное учреждение \"Школа № 178\"",54,"призер ","победитель","Дубынина Ирина Николаевна"]
[16,"Московский","И-10-1",10,10,"Муниципальное бюджетное общеобразовательное учреждение \"Школа № 115\"",54,"призер ",null,"Жукова Евгения Борисовна"]
[17,"Московский","и-10-4",10,10,"Муниципальное автономное общеобразовательное учреждение  \"Школа № 118 с углубленным изучением отдельных предметов\"",52,"призер ",null,"Хехнев Александр Владимирович"]
[18,"Московский","и-10-3",10,10,"Муниципальное автономное общеобразовательное учреждение  \"Школа № 118 с углубленным изучением отдельных предметов\"",51,"призер ",null,"Хехнев Александр Владимирович"]
[19,"Московский","И-10-5",10,10,"Муниципальное автономное  общеобразовательное учреждение \"Школа № 149\"",51,"призер ",null,"Прокофьева Александра Игоревна"]
[20,"Московский","и-10-8",10,10,"Муниципальное автономное общеобразовательное учреждение  \"Школа № 118 с углубленным изучением отдельных предметов\"",50,"призер ",null,"Хехнев Александр Владимирович"]
[21,"Московский","И-10-1","10А","10А","Муниципальное автономное общеобразовательное учреждение \"Школа № 139\"",46,"участник",null," Изосова Ирина Васильевна"]
[22,"Московский","ИС-10-01",10,10,"Муниципальное автономное общеобразовательное учреждение \"Гимназия № 67\"",44,"участник",null,"Романов Сергей Николаевич."]
[23,"Московский","ИС-10-02",10,10,"Муниципальное автономное общеобразовательное учреждение \"Гимназия № 67\"",44,"участник",null,"Романов Сергей Николаевич."]
[24,"Московский","и-10-1",10,10,"Муниципальное автономное общеобразовательное учреждение  \"Школа № 118 с углубленным изучением отдельных предметов\"",43,"участник",null,"Хехнев Александр Владимирович"]
[25,"Московский","И-10-1","10а",10,"Муниципальное бюджетное общеобразовательное учреждение \"Школа №73\"",42,"участник",null,"Кузнецова Ольга Николаевна"]
[26,"Московский","И-10-2","10А","10А","Муниципальное автономное общеобразовательное учреждение \"Школа № 139\"",41,"участник",null," Изосова Ирина Васильевна"]
[27,"Московский","ИС-10-06",10,10,"Муниципальное автономное общеобразовательное учреждение \"Гимназия № 67\"",41,"участник",null,"Романов Сергей Николаевич."]
[28,"Московский","И-10-13",10,10,"Муниципальное автономное  общеобразовательное учреждение \"Школа № 178\"",41,"участник",null,"Дубынина Ирина Николаевна"]
[29,"Московский","И-10-6",10,10,"Муниципальное автономное  общеобразовательное учреждение \"Школа № 149\"",40,"участник",null,"Прокофьева Александра Игоревна"]
[30,"Московский","И-10-12",10,10,"Муниципальное автономное  общеобразовательное учреждение \"Школа № 178\"",39,"участник",null,"Дубынина Ирина Николаевна"]
[31,"Московский","И-10-8",10,10,"Муниципальное автономное  общеобразовательное учреждение \"Школа № 149\"",39,"участник",null,"Прокофьева Александра Игоревна"]
[32,"Московский","И-10-4",10,10,"Муниципальное автономное  общеобразовательное учреждение \"Школа № 149\"",38,"участник",null,"Прокофьева Александра Игоревна"]
[33,"Московский","ИС-10-11",10,10,"Муниципальное бюджетное  общеобразовательное учреждение \"Школа № 21\"",37,"участник",null,"Лошаков Андрей Михайлович"]
[34,"Московский","И-10-11",10,10,"Муниципальное автономное  общеобразовательное учреждение \"Школа № 178\"",36,"участник",null,"Дубынина Ирина Николаевна"]
[35,"Московский","ИС-10-04",10,10,"Муниципальное автономное общеобразовательное учреждение \"Гимназия № 67\"",36,"участник",null,"Романов Сергей Николаевич."]
[36,"Московский","И-10-3","10А","10А","Муниципальное автономное общеобразовательное учреждение \"Школа № 139\"",36,"участник",null," Изосова Ирина Васильевна"]
[37,"Московский","и-10-2",10,10,"Муниципальное автономное общеобразовательное учреждение  \"Школа № 118 с углубленным изучением отдельных предметов\"",36,"участник",null,"Хехнев Александр Владимирович"]
[38,"Московский","И-10-2",10,10,"Муниципальное бюджетное общеобразовательное учреждение \"Школа №64\"",36,"участник",null,"Громов Н.Е."]
[39,"Московский","и-10-6",10,10,"Муниципальное автономное общеобразовательное учреждение  \"Школа № 118 с углубленным изучением отдельных предметов\"",36,"участник",null,"Хехнев Александр Владимирович"]
[40,"Московский","и-10-5",10,10,"Муниципальное автономное общеобразовательное учреждение  \"Школа № 118 с углубленным изучением отдельных предметов\"",34,"участник",null,"Хехнев Александр Владимирович"]
[41,"Московский","И-10-22",10,10,"Муниципальное автономное  общеобразовательное учреждение \"Школа № 178\"",33,"участник",null,"Дубынина Ирина Николаевна"]
[42,"Московский","ИС-10-15",10,10,"Муниципальное бюджетное  общеобразовательное учреждение \"Школа № 21\"",31,"участник",null,"Лошаков Андрей Михайлович"]
[43,"Московский","И-10-4","10А","10А","Муниципальное автономное общеобразовательное учреждение \"Школа № 139\"",31,"участник",null," Изосова Ирина Васильевна"]
[44,"Московский","И-10-7",10,10,"Муниципальное автономное  общеобразовательное учреждение \"Школа № 149\"",30,"участник",null,"Прокофьева Александра Игоревна"]
[45,"Московский","И-10-1",10,10,"Муниципальное бюджетное общеобразовательное учреждение \"Школа №64\"",30,"участник",null,"Громов Н.Е."]
[46,"Московский","И-10-3",10,10,"Муниципальное бюджетное общеобразовательное учреждение \"Школа № 115\"",28,"участник",null,"Жукова Евгения Борисовна"]
[47,"Московский","И-10-2",10,10,"Муниципальное автономное  общеобразовательное учреждение \"Школа № 178\"",28,"участник",null,"Дубынина Ирина Николаевна"]
[48,"Московский","И-10-16",10,10,"Муниципальное автономное  общеобразовательное учреждение \"Школа № 178\"",27,"участник",null,"Дубынина Ирина Николаевна"]
[49,"Московский","И-10-3",10,10,"Муниципальное автономное  общеобразовательное учреждение \"Школа № 149\"",26,"участник",null,"Прокофьева Александра Игоревна"]
[50,"Московский","И-10-19",10,10,"Муниципальное автономное  общеобразовательное учреждение \"Школа № 178\"",25,"участник",null,"Дубынина Ирина Николаевна"]
[51,"Московский","Ис-10-08",10,10,"Муниципальное автономное общеобразовательное учреждение \"Школа № 172\"",22,"участник",null,"Карпова О.В."]
[52,"Московский","И-10-2",10,10,"Муниципальное автономное  общеобразовательное учреждение \"Школа № 149\"",22,"участник",null,"Прокофьева Александра Игоревна"]
[53,"Московский","И-10-2","10а",10,"Муниципальное бюджетное общеобразовательное учреждение \"Школа №73\"",21,"участник",null,"Кузнецова Ольга Николаевна"]
[54,"Московский","Ис-10-02",10,10,"Муниципальное автономное общеобразовательное учреждение \"Школа № 172\"",21,"участник",null,"Карпова О.В."]
[55,"Московский","Ис-10-07",10,10,"Муниципальное автономное общеобразовательное учреждение \"Школа № 172\"",20,"участник",null,"Карпова О.В."]
[56,"Московский","Ис-10-01",10,10,"Муниципальное автономное общеобразовательное учреждение \"Школа № 172\"",19,"участник",null,"Карпова О.В."]
[57,"Московский","И10А-1",10,10,"Муниципальное бюджетное общеобразовательное учреждение \"Школа № 66\"",19,"участник",null,"Прошунина Галина Петровна"]
[58,"Московский","Ис-10-04",10,10,"Муниципальное автономное общеобразовательное учреждение \"Школа № 172\"",19,"участник",null,"Карпова О.В."]
[59,"Московский","И-10-12",10,10,"Муниципальное автономное общеобразовательное учреждение \"Школа № 74 с углубленным изучением отдельных предметов\"",18,"участник",null,"Морскова Елена Фирсовна"]
[60,"Московский","Ис-10-09",10,10,"Муниципальное автономное общеобразовательное учреждение \"Школа № 172\"",18,"участник",null,"Карпова О.В."]
[61,"Московский","Ис-10-03",10,10,"Муниципальное автономное общеобразовательное учреждение \"Школа № 172\"",17,"участник",null,"Карпова О.В."]
[62,"Московский","Ис-10-05",10,10,"Муниципальное автономное общеобразовательное учреждение \"Школа № 172\"",16,"участник",null,"Карпова О.В."]
[63,"Московский","И-10-1",10,10,"Муниципальное автономное  общеобразовательное учреждение \"Школа № 149\"",12,"участник",null,"Прокофьева Александра Игоревна"]

{"sheet":"История 11","index":5,"n_rows":65,"n_cols":11,"rows_kept":65,"cut":false,"hidden":false,"merged":[[0,2,0,9]]}
[]
[]
[null,null,100]
[]
[]
["№ п/п","Муниципалитет","Шифр (код) выданный ребенку","класс обучается","класс выступает","ОО, в которой обучается (полное название по УСТАВУ)","Количество набранных баллов","Статус","Победитель/призер МЭ 2021-2022 (статус)*","ФИО учителя (наставника)","ФИО учителя (наставника)**"]
[1,"Московский","И-29-09-37",11,11,"Муниципальное бюджетное общеобразовательное учреждение \"Лицей № 87 имени Л.И. Новиковой\"\"",86,"победитель ",null,"Шапкина Наталья Михайловна"]
[2,"Московский","И-29-09-38",11,11,"Муниципальное бюджетное общеобразовательное учреждение \"Лицей № 87 имени Л.И. Новиковой\"\"",83,"призер",null,"Шапкина Наталья Михайловна"]
[3,"Московский","ИС-11-04",11,11,"Муниципальное автономное общеобразовательное учреждение \"Гимназия № 67\"",79,"призер",null,"Егоров Вадим Валерьевич"]
[4,"Московский","Ис-11-01",11,11,"Муниципальное автономное общеобразовательное учреждение \"Школа № 172\"",78,"призер",null,"Гаммель А.В."]
[5,"Московский","И-29-09-39",11,11,"Муниципальное бюджетное общеобразовательное учреждение \"Лицей № 87 имени Л.И. Новиковой\"\"",76,"призер",null,"Шапкина Наталья Михайловна"]
[6,{"$f":"$B$11","v":"Московский"},"ИС-11-05",11,11,"Муниципальное автономное общеобразовательное учреждение \"Гимназия № 67\"",75,"призер",null,"Романов Сергей Николаевич."]
[7,"Московский","ИС-11-01",11,11,"Муниципальное автономное общеобразовательное учреждение \"Гимназия № 67\"",74,"призер",null,"Романов Сергей Николаевич."]
[8,"Московский","ИС-11-02",11,11,"Муниципальное автономное общеобразовательное учреждение \"Гимназия № 67\"",74,"призер",null,"Романов Сергей Николаевич."]
[9,"Московский","ИС-2",{"$f":"$D$11","v":11},{"$f":"$D$11","v":11},"Муниципальное бюджетное общеобразовательное учреждение \"Школа № 93\"",74,"призер",null,"Рослова Лариса Вячеславовна"]
[10,"Московский","И-11-2",11,11,"Муниципальное бюджетное общеобразовательное учреждение \"Школа № 115\"",72,"призер","призер","Симахина Евгения Александровна"]
[11,"Московский","И-11-3","11А","11А","Муниципальное автономное общеобразовательное учреждение \"Школа № 139\"",66,"призер",null,"Изосова Ирина Васильевна"]
[12,"Московский","И-11-1",11,11,"муниципальное автономное  общеобразовательное учреждение \"Школа № 70 с углубленным изучением отдельных предметов\"",65,"призер",null,"Михайлова  Ольга Анатольевна"]
[13,"Московский","И-11-4",11,11,"муниципальное автономное  общеобразовательное учреждение \"Школа № 70 с углубленным изучением отдельных предметов\"",64,"призер",null,"Михайлова  Ольга Анатольевна"]
[14,"Московский","И-11-2","11а",11,"Муниципальное бюджетное общеобразовательное учреждение \"Школа № 73\"",61,"призер",null,"Кузнецова Ольга Николаевна"]
[15,"Московский","И-11-1","11А","11А","Муниципальное автономное общеобразовательное учреждение \"Школа № 139\"",60,"призер",null," Изосова Ирина Васильевна"]
[16,"Московский","И-11-6",11,11,"Муниципальное автономное общеобразовательное учреждение \"Школа № 74 с углубленным изучением отдельных предметов\"",60,"призер",null,"Морскова Елена Фирсовна"]
[17,"Московский","И-11-1",11,11,"Муниципальное бюджетное общеобразовательное учреждение \"Школа №64\"",58,"призер",null,"Громов Н.Е."]
[18,"Московский","Ис-11-03",11,11,"Муниципальное автономное общеобразовательное учреждение \"Школа № 172\"",55,"призер",null,"Гаммель А.В."]
[19,"Московский","И-11-2",11,11,"муниципальное автономное  общеобразовательное учреждение \"Школа № 70 с углубленным изучением отдельных предметов\"",54,"участник",null,"Михайлова  Ольга Анатольевна"]
[20,"Московский","И-11-3",11,11,"Муниципальное автономное общеобразовательное учреждение \"Школа № 178\"",53,"участник",null,"Дубынина Ирина Николаевна"]
[21,"Московский","ИС-3",{"$f":"$D$11","v":11},{"$f":"$D$11","v":11},"Муниципальное бюджетное общеобразовательное учреждение \"Школа № 93\"",52,"участник",null,"Рослова Лариса Вячеславовна"]
[22,"Московский","И11А-3",11,11,"Муниципальное бюджетное общеобразовательное учреждение \"Школа № 66\"",51,"участник",null,"Прошунина Галина Петровна"]
[23,"Московский","И-11-8",11,11,"Муниципальное автономное общеобразовательное учреждение \"Школа № 74 с углубленным изучением отдельных предметов\"",47,"участник",null,"Морскова Елена Фирсовна"]
[24,"Московский","ИС-11-10",11,11,"Муниципальное бюджетное общеобразовательное учреждение \"Школа № 21\"",46,"участник",null,"Лошаков Андрей Михайлович"]
[25,"Московский","Ис-11-02",11,11,"Муниципальное автономное общеобразовательное учреждение \"Школа № 172\"",45,"участник",null,"Гаммель А.В."]
[26,"Московский","И-11-33",11,11,"Муниципальное автономное общеобразовательное учреждение \"Школа № 178\"",43,"участник",null,"Дубынина Ирина Николаевна"]
[27,"Московский","И-11-5","11А","11А","Муниципальное автономное общеобразовательное учреждение \"Школа № 139\"",41,"участник",null,"Изосова Ирина Васильевна"]
[28,"Московский","ИС-11-06",11,11,"Муниципальное автономное общеобразовательное учреждение \"Гимназия № 67\"",41,"участник",null,"Романов Сергей Николаевич."]
[29,"Московский","И-11-2",11,11,"Муниципальное автономное  общеобразовательное учреждение \"Школа № 149\"",40,"участник",null,"Прокофьева Александра Игоревна"]
[30,"Московский","Ис-11-05",11,11,"Муниципальное автономное общеобразовательное учреждение \"Школа № 172\"",40,"участник",null,"Гаммель А.В."]
[31,"Московский","Ис-11-04",11,11,"Муниципальное автономное общеобразовательное учреждение \"Школа № 172\"",39,"участник",null,"Гаммель А.В."]
[32,"Московский","И11А-1",11,11,"Муниципальное бюджетное общеобразовательное учреждение \"Школа № 66\"",37,"участник",null,"Прошунина Галина Петровна"]
[33,"Московский","И-11-4",11,11,"Муниципальное бюджетное общеобразовательное учреждение \"Школа №64\"",37,"участник",null,"Громов Н.Е."]
[34,"Московский","и-11-1",11,11,"Муниципальное автономное общеобразовательное учреждение  \"Школа № 118 с углубленным изучением отдельных предметов\"",36,"участник",null,"Сосенкова С.А."]
[35,"Московский","ИС-11-03",11,11,"Муниципальное автономное общеобразовательное учреждение \"Гимназия № 67\"",36,"участник",null,"Романов Сергей Николаевич."]
[36,"Московский","И-11-5","11А","11А","Муниципальное автономное общеобразовательное учреждение \"Школа № 139\"",35,"участник",null,"Изосова Ирина Васильевна"]
[37,"Московский","И11А-4",11,11,"Муниципальное бюджетное общеобразовательное учреждение \"Школа № 66\"",35,"участник",null,"Прошунина Галина Петровна"]
[38,"Московский","И-11-1",11,11,"Муниципальное автономное  общеобразовательное учреждение \"Школа № 149\"",35,"участник",null,"Прокофьева Александра Игоревна"]
[39,"Московский","И-11-2","11А","11А","Муниципальное автономное общеобразовательное учреждение \"Школа № 139\"",34,"участник",null,"Изосова Ирина Васильевна"]
[40,"Московский","Ис-11-06",11,11,"Муниципальное автономное общеобразовательное учреждение \"Школа № 172\"",34,"участник",null,"Гаммель А.В."]
[41,"Московский","И-11-6",11,11,"Муниципальное бюджетное общеобразовательное учреждение \"Школа № 115\"",34,"участник",null,"Симахина Евгения Александровна"]
[42,"Московский","И-03011",11,11,"Муниципальное бюджетное общеобразовательное учреждение \"Школа № 69\"",34,"участник",null,"Козлова Екатерина Ивановна"]
[43,"Московский","И-11-3",11,11,"Муниципальное бюджетное общеобразовательное учреждение \"Школа №64\"",33,"участник",null,"Громов Н.Е."]
[44,"Московский","И-11-37",11,11,"Муниципальное автономное общеобразовательное учреждение \"Школа № 178\"",32,"участник",null,"Дубынина Ирина Николаевна"]
[45,"Московский","и-11-2",11,11,"Муниципальное автономное общеобразовательное учреждение  \"Школа № 118 с углубленным изучением отдельных предметов\"",32,"участник",null,"Сосенкова С.А."]
[46,"Московский","И-11-1",11,11,"Муниципальное бюджетное общеобразовательное учреждение \"Школа № 115\"",31,"участник",null,"Симахина Евгения Александровна"]
[47,"Московский","И-11-36",11,11,"Муниципальное автономное общеобразовательное учреждение \"Школа № 178\"",31,"участник",null,"Дубынина Ирина Николаевна"]
[48,"Московский","ИС-11-15",11,11,"Муниципальное бюджетное общеобразовательное учреждение \"Школа № 21\"",31,"участник",null,"Лошаков Андрей Михайлович"]
[49,"Московский","И-11-2",11,11,"Муниципальное бюджетное общеобразовательное учреждение \"Школа №64\"",30,"участник",null,"Громов Н.Е."]
[50,"Московский","И-11-38",11,11,"Муниципальное автономное общеобразовательное учреждение \"Школа № 178\"",30,"участник",null,"Дубынина Ирина Николаевна"]
[51,"Московский","И-11-32",11,11,"Муниципальное автономное общеобразовательное учреждение \"Школа № 178\"",29,"участник",null,"Дубынина Ирина Николаевна"]
[52,"Московский","И11А-2",11,11,"Муниципальное бюджетное общеобразовательное учреждение \"Школа № 66\"",26,"участник",null,"Прошунина Галина Петровна"]
[53,"Московский","И-11-3",11,11,"муниципальное автономное  общеобразовательное учреждение \"Школа № 70 с углубленным изучением отдельных предметов\"",25,"участник",null,"Михайлова  Ольга Анатольевна"]
[54,"Московский","и-11-3",11,11,"Муниципальное автономное общеобразовательное учреждение  \"Школа № 118 с углубленным изучением отдельных предметов\"",22,"участник",null,"Сосенкова С.А."]
[55,"Московский","И-11-4",11,11,"Муниципальное бюджетное общеобразовательное учреждение \"Школа № 115\"",19,"участник",null,"Симахина Евгения Александровна"]
[56,"Московский","И-11-5",11,11,"Муниципальное бюджетное общеобразовательное учреждение \"Школа № 115\"",19,"участник",null,"Симахина Евгения Александровна"]
[57,"Московский","И-11-1","11а",11,"Муниципальное бюджетное общеобразовательное учреждение \"Школа № 73\"",18,"участник",null,"Кузнецова Ольга Николаевна"]
[58,"Московский","И-11-3","11а",11,"Муниципальное бюджетное общеобразовательное учреждение \"Школа № 73\"",18,"участник",null,"Кузнецова Ольга Николаевна"]
[59,"Московский","ИС-2",{"$f":"$D$11","v":11},{"$f":"$D$11","v":11},"Муниципальное бюджетное общеобразовательное учреждение \"Школа № 93\"",14,"участник",null,"Рослова Лариса Вячеславовна"]